{"text_format":"3","workbook":"xlsx","n_sheets":7,"sheets":["File Info","Target Facilities","TRI detail","RCRA detail","GHGRP detail","NEI detail","NPDES DMR detail"],"not_rendered":{"external_links":1,"defined_names":11},"read":"whole","date_system":"1900"}

{"sheet":"File Info","index":0,"n_rows":30,"n_cols":5,"rows_kept":30}
["This file presents data for HI only."]
["January 2023"]
["Background:","This file is intended to assist P2 providers in identifying facilities in the state that may be interested in implementing P2 projects. The file consolidates data from six different EPA"]
[null,"datasystems (shown in green below); individual facilities may be present in one or all six datasystems. The file couples this facilty identification information with data on the demographics"]
[null,"of the area where the facility is located, as defined by the Census Block Group. A Census Block Group is an area, generally defined to contain between 600 and 3,000 people, which the Census"]
[null,"Bureau uses to present data on demographics. The demographics data helps P2 providers understand the population near each facility."]
["How to use this file:","The \"Target Facilities\" tab lists the facilities in the state that are present in at least one of the six EPA datasystems shown in green below. Use the arrow in any column heading to filter on a"]
[null,"column of interest. For example, users can filter by location (e.g., by filtering on the Facility City or Facility ZIP code columns), by industrial sector (e.g., by filtering the NEA Sectors or Sector"]
[null,"columns, with sectors designated by North American Industry Classification System (NAICS) codes), or by demographics (e.g., by filtering on the Demographic Index column). For facilities of"]
[null,"interest, use the remaining tabs in the file to see further details on each facility's environmental profile using the \"FRS ID\" as the common identifier across the datasystems. FRS mismatches "]
[null,"occur occasionally when there are inconsistencies across data systems."]
["Program","Data Source","Data Timeframe","Notes","For more information:"]
["TRI Detail","2021 TRI data (published October 2022)","Jan 1, 2021 - Dec 31, 2021","Based on data contained in flat files provided to ERG by EPA.","https://www.epa.gov/toxics-release-inventory-tri-program/common-tri-terms"]
["NEI Detail","2017 NEI (Jan 2021 Version)","Jan 1, 2017 - Dec 31, 2017","The EPA's FRS_PROGRAM_LINKS.csv file downloaded on 9/29/2021 was used to map EIS facility IDs to FRS facility IDs.","https://www.epa.gov/air-emissions-inventories/national-emissions-inventory-nei"]
["GHGRP Detail","2021 Data Summary Spreadsheets zip file","Jan 1, 2021 - Dec 31, 2021","Data downloaded on 11/20/2022 from https://www.epa.gov/ghgreporting/data-sets. Used the ghgrp_data_2021.xlsx file, Direct Emitters tab only.","https://www.epa.gov/ghgreporting/learn-about-greenhouse-gas-reporting-program-ghgrp"]
["RCRA Detail","RCRA e-Manifests shipped between July 1, 2021 and July 1, 2022","July 1, 2021 - July 1, 2022","Facility name, location information, and NAICS from e-Manifest data module on RCRA Metabase, while FRS information was linked with RCRAInfo data. Data queried November 8, 2022 and took 90 day \"soft embargo\" period into account.","https://www.epa.gov/e-manifest/frequent-questions-about-e-manifest#scope"]
["NPDES DMR Detail","2021 DMR ","Jan 1, 2021 - Dec 31, 2021","Data downloaded on November 8, 2022 using a Custom Search of EPA's Pollutant Loading Tool. Sector designation for these facilities often uses the Standard Industrial Classification (SIC) code instead of a NAICS code. Data includes facility-level total pollutant loading values (kg/yr) for non-POTW industrial point source facilities, excluding facilities with null pollutant loading values (null means DMR data were not reported, so a load cannot be calculated). Criteria used for the custom search were: \"Level of Detail= Facility\"; \"Reporting Year= 2021\"; \"Facility Type= NON_POTW\"; \"Data for Loading Calculations= DMR data only\"; \"Non-Detects Equal to= Zero\"; \"Estimation Function= On\"; \"Parameter Grouping Function= Off\"; \"Nutrient Aggregation Function= Off\"","https://echo.epa.gov/trends/loading-tool/resources/about-the-data#scopedmr"]
["Explanation of Select Columns","Column Description"]
["Demographic Index (US percentile)","The Demographic index (US percentile) is a national percentile based on the average of two demographic indicators for the Census Block Group: Percent People of Color and Percent Low Income. ​For example, if a Census Block Group has 70% People of Color and 50% of the population is in a low income household, the average of those two metrics is 60%. Nationally, an average of 60% is in the 83rd percentile, meaning 83% of Census Block Groups have an average of those two metrics that is less than 60%."]
["TRI Reporter (TRIFID)","This column contains the TRI facility IDs linked to the FRS ID. If blank, the facility did not report to TRI for 2021."]
["RCRA Shipments (RCRA ID)","This column contains the RCRA IDs linked to the FRS ID. If blank, the facility did not submit any RCRA e-manifest forms in the selected timeframe."]
["GHG Reporter (GHGRP ID)","This column contains the GHGRP IDs linked to the FRS ID. If blank, the facility did not report to GHGRP for 2021."]
["Air Emissions Source \n(EIS ID)","This column contains the EIS IDs linked to the FRS ID. If blank, the facility was not included as an identified point source in the 2017 NEI."]
["Water Discharger (NPDES ID)","This column contains the NPDES IDs linked to the FRS ID. If blank, the facility did not file any DMRs for 2021."]
["NEA?","This column indicates whether any NAICS code reported for the facility is in an NEA."]
["Manufacturing?","This column indicates whether any NAICS code reported for the facility is in the manufacturing sector. Only facilities in manufacturing or NEA sectors are included as potential targets in this file."]
["NEA Sectors","This column indicates which, if any, NEAs the facility may be in. This field is populated based on the NAICS codes from the five inventories included in this file. The inventory detail tabs show this field for reference, and it does not necessarily correspond to the primary NAICS for a single inventory."]
["Other NAICS Sectors","If only one NAICS code was reported across programs, this column indicates the facility's sector. If different NAICS codes were reported across programs or within a program, this is reported as \"multiple\""]
["Percent People of Color in Census Block Group","People of Color are all people in the Census block group except non-Hispanic white-alone"]
["Percent Low Income in Census Block Group","Low Income is the population in households in the Census block group where the household income is less than or equal to twice the federal poverty level."]

{"sheet":"Target Facilities","index":1,"n_rows":28,"n_cols":48,"rows_kept":28}
["State","Demographic Index (US percentile)","Flag for Census Block Group ≥80th percentile (US, demographic index)","FRS ID","Facility Name","Facility Street Address","Facility City","Facility State","Facility County","Facility ZIP Code","Has TRI Contact","Has RCRA contact","NEA?","Manufacturing?","NEA Sectors","Sector","TRI NAICS","RCRA NAICS","GHGRP NAICS","NEI NAICS","DMR NAICS","TRI Reporter (TRIFID)","RCRA Shipments (RCRA ID)","GHG Reporter (GHGRP ID)","Air Emissions Source (EIS ID)","Water Discharger (NPDES ID)","Census Block Group","Population of Census Block Group","Demographic Index for Census Block Group","Supplemental Demographic Index","Percent People of Color in Census Block Group","Percent Low Income in Census Block Group","Percent Less than High School in Census Block Group","Percent Linguistic Isolation in Census Block Group","Demographic Index for Census Block Group (US percentile)","US Percentile Supplemental Demographic Index","People of Color in Census Block Group (US percentile)","Low Income in Census Block Group (US percentile)","Less than High School in Census Block Group (US percentile)","Linguistic Isolation in Census Block Group (US percentile)","Demographic Index for Census Block Group (state percentile)","State Percentile Supplemental Demographic Index","Flag for Census Block Group ≥80th percentile (State, demographic index)","State 80th Percentile Supplemental Demographic Index","People of Color in Census Block Group (state percentile)","Low Income in Census Block Group (state percentile)","Less than High School in Census Block Group (state percentile)","Linguistic Isolation in Census Block Group (state percentile)"]
["HI",72,{"$f":"IF(Table1[[#This Row],[Demographic Index (US percentile)]]=\"\",\"No\",IF(Table1[[#This Row],[Demographic Index (US percentile)]]>=80,\"Yes\", \"No\"))","v":"No"},"110020140051","GROVE FARM WATER TREATMENT FACILITY (1)","OFF MAALO ROAD","LIHUE","HI","KAUAI","96766","No","No","Yes","Yes","Food & Beverage","Beverage Manufacturing","","","","","312112","","","","","HI0021824","150070404013",{"v":2909,"d":"2,909"},{"v":0.470562193886139,"d":"47.1%"},{"v":0.109034413890069,"d":"10.9%"},{"v":0.82949467170849,"d":"82.9%"},{"v":0.111629716063788,"d":"11.2%"},{"v":0.132943143812709,"d":"13.3%"},{"v":0.105263157894736,"d":"10.5%"},72,39,85,19,67,85,42,59,"","",51,32,85,83]
["HI",84,{"$f":"IF(Table1[[#This Row],[Demographic Index (US percentile)]]=\"\",\"No\",IF(Table1[[#This Row],[Demographic Index (US percentile)]]>=80,\"Yes\", \"No\"))","v":"Yes"},"110017621019","HAWAII MARINE CLEANING LLC","96 1382 WAIHONA ST","PEARL CITY","HI","HONOLULU","96782","No","Yes","No","Yes","None","Ship and Boat Building","","336611","","","","","HIR000135582","","","","150030080111",{"v":2440,"d":"2,440"},{"v":0.622800005410377,"d":"62.3%"},{"v":0.112708299591222,"d":"11.3%"},{"v":0.979098360655737,"d":"97.9%"},{"v":0.266501650165016,"d":"26.7%"},{"v":0.138845553822152,"d":"13.9%"},{"v":0,"d":"0.0%"},84,41,95,48,68,0,87,62,"Yes","",93,70,86,0]
["HI",75,{"$f":"IF(Table1[[#This Row],[Demographic Index (US percentile)]]=\"\",\"No\",IF(Table1[[#This Row],[Demographic Index (US percentile)]]>=80,\"Yes\", \"No\"))","v":"No"},"110070132031","HC&D KAPAA QUARRY","26 KAPAA QUARRY PLACE","KAILUA","HI","HONOLULU","96734","No","Yes","No","Yes","None","Cement and Concrete Product Manufacturing","","32732","","","","","HIR000145888","","","","150030107021",{"v":1409,"d":"1,409"},{"v":0.511649833895131,"d":"51.2%"},{"v":0.098186032246905,"d":"9.8%"},{"v":0.834634492547906,"d":"83.5%"},{"v":0.188665175242356,"d":"18.9%"},{"v":0.110729613733905,"d":"11.1%"},{"v":0,"d":"0.0%"},75,33,85,34,60,0,58,51,"","",52,53,79,0]
["HI",92,{"$f":"IF(Table1[[#This Row],[Demographic Index (US percentile)]]=\"\",\"No\",IF(Table1[[#This Row],[Demographic Index (US percentile)]]>=80,\"Yes\", \"No\"))","v":"Yes"},"110000486260","PEPSI COLA BOTTLING CO OF HONOLULU","99-1325 HALAWA VALLEY STREET","AIEA","HI","HONOLULU","96701","No","Yes","Yes","Yes","Food & Beverage","Beverage Manufacturing","","312111","","","","","HIR000138370","","","","150030075072",591,{"v":0.742808798646361,"d":"74.3%"},{"v":0.341756919374247,"d":"34.2%"},{"v":0.818950930626057,"d":"81.9%"},{"v":0.666666666666666,"d":"66.7%"},{"v":0.200361010830324,"d":"20.0%"},{"v":0,"d":"0.0%"},92,97,84,92,80,0,96,99,"Yes","Yes",49,98,93,0]
["HI",52,{"$f":"IF(Table1[[#This Row],[Demographic Index (US percentile)]]=\"\",\"No\",IF(Table1[[#This Row],[Demographic Index (US percentile)]]>=80,\"Yes\", \"No\"))","v":"No"},"110046184516","PEARL HARBOR NAVAL SHIPYARD & INTERMEDIATE MAINTENANCE FACILITY","667 SAFEGUARD ST","HONOLULU","HI","HONOLULU","96818","No","Yes","No","Yes","None","National Security and International Affairs ","","92811","","","336611","","HI6170024339","","","HI0110230","150030074001",{"v":3314,"d":"3,314"},{"v":0.302598099849096,"d":"30.3%"},{"v":0.082938870379234,"d":"8.3%"},{"v":0.4031382015691,"d":"40.3%"},{"v":0.202057998129092,"d":"20.2%"},{"v":0.062871707731521,"d":"6.3%"},{"v":0,"d":"0.0%"},52,24,60,37,41,0,10,39,"","",10,56,59,0]
["HI",null,{"$f":"IF(Table1[[#This Row],[Demographic Index (US percentile)]]=\"\",\"No\",IF(Table1[[#This Row],[Demographic Index (US percentile)]]>=80,\"Yes\", \"No\"))","v":"No"},"110046526559","TRANE PACIFIC SERVICES","2969 MAPUNAPUNA PL STE 101","HONOLULU","HI","HONOLULU","96819","No","Yes","No","Yes","None","Navigational, Measuring, Electromedical, and Control Instruments Manufacturing","","334512","","","","","HIR000141358","","","","150039813001",95,{"v":0,"d":"0.0%"},{"v":0,"d":"0.0%"},{"v":0,"d":"0.0%"},{"v":0,"d":"0.0%"},{"v":0,"d":"0.0%"},{"v":0,"d":"0.0%"},0,0,0,0,0,0,0,0,"","",0,0,0,0]
["HI",85,{"$f":"IF(Table1[[#This Row],[Demographic Index (US percentile)]]=\"\",\"No\",IF(Table1[[#This Row],[Demographic Index (US percentile)]]>=80,\"Yes\", \"No\"))","v":"Yes"},"110055927804","TRU TAG TECHNOLOGIES, INC.","2045 LAUWILIWILI ST., UNITS 301-304","KAPOLEI","HI","HONOLULU","96707","No","Yes","Yes","Yes","Chemicals","Basic Chemical Manufacturing","","32518","","","","","HIR000141630","","","","150030085021",{"v":2421,"d":"2,421"},{"v":0.629716403356876,"d":"63.0%"},{"v":0.152951518033406,"d":"15.3%"},{"v":0.852953325072284,"d":"85.3%"},{"v":0.406479481641468,"d":"40.6%"},{"v":0.092638036809816,"d":"9.3%"},{"v":0,"d":"0.0%"},85,62,86,69,54,0,87,82,"Yes","Yes",56,89,73,0]
["HI",85,{"$f":"IF(Table1[[#This Row],[Demographic Index (US percentile)]]=\"\",\"No\",IF(Table1[[#This Row],[Demographic Index (US percentile)]]>=80,\"Yes\", \"No\"))","v":"Yes"},"110041598571","TESORO -  BARBERS POINT MARINE LOADING","BARBERS POINT HARBOR , MALAKOLE ST","KAPOLEI","HI","HONOLULU","96707","No","No","No","Yes","None","Petroleum and Coal Products Manufacturing","","","","324110","","","","","12682311","","150030085021",{"v":2421,"d":"2,421"},{"v":0.629716403356876,"d":"63.0%"},{"v":0.152951518033406,"d":"15.3%"},{"v":0.852953325072284,"d":"85.3%"},{"v":0.406479481641468,"d":"40.6%"},{"v":0.092638036809816,"d":"9.3%"},{"v":0,"d":"0.0%"},85,62,86,69,54,0,87,82,"Yes","Yes",56,89,73,0]
["HI",86,{"$f":"IF(Table1[[#This Row],[Demographic Index (US percentile)]]=\"\",\"No\",IF(Table1[[#This Row],[Demographic Index (US percentile)]]>=80,\"Yes\", \"No\"))","v":"Yes"},"110070119916","COSMOS JEWELRY, LTD.","1320 KALANI STREET #214","HONOLULU","HI","HONOLULU","96817","No","Yes","No","Yes","None","Other Miscellaneous Manufacturing","","33991","","","","","HIR000144551","","","","150030057001",{"v":1930,"d":"1,930"},{"v":0.641759190722921,"d":"64.2%"},{"v":0.268412065886314,"d":"26.8%"},{"v":0.878756476683937,"d":"87.9%"},{"v":0.404761904761904,"d":"40.5%"},{"v":0.221419975932611,"d":"22.1%"},{"v":0.394932935916542,"d":"39.5%"},86,91,88,69,83,97,89,98,"Yes","Yes",63,88,95,99]
["HI",85,{"$f":"IF(Table1[[#This Row],[Demographic Index (US percentile)]]=\"\",\"No\",IF(Table1[[#This Row],[Demographic Index (US percentile)]]>=80,\"Yes\", \"No\"))","v":"Yes"},"110005724145","HAWAIIAN DREDGING AND CONSTRUCTION CO","91 063 MALAKOLE ST","KAPOLEI","HI","HONOLULU","96707","No","No","No","Yes","None","Ship and Boat Building","","","","","336611","","","","","HI0021893","150030085021",{"v":2421,"d":"2,421"},{"v":0.629716403356876,"d":"63.0%"},{"v":0.152951518033406,"d":"15.3%"},{"v":0.852953325072284,"d":"85.3%"},{"v":0.406479481641468,"d":"40.6%"},{"v":0.092638036809816,"d":"9.3%"},{"v":0,"d":"0.0%"},85,62,86,69,54,0,87,82,"Yes","Yes",56,89,73,0]
["HI",85,{"$f":"IF(Table1[[#This Row],[Demographic Index (US percentile)]]=\"\",\"No\",IF(Table1[[#This Row],[Demographic Index (US percentile)]]>=80,\"Yes\", \"No\"))","v":"Yes"},"110070788689","PAR WEST REFINERY","91-553 MALAKOLE ST","KAPOLEI","HI","HONOLULU COUNTY","96707","Yes","No","No","Yes","None","Petroleum and Coal Products Manufacturing","324110","","","","","9670WPRWST91553","","","","","150030085021",{"v":2421,"d":"2,421"},{"v":0.629716403356876,"d":"63.0%"},{"v":0.152951518033406,"d":"15.3%"},{"v":0.852953325072284,"d":"85.3%"},{"v":0.406479481641468,"d":"40.6%"},{"v":0.092638036809816,"d":"9.3%"},{"v":0,"d":"0.0%"},85,62,86,69,54,0,87,82,"Yes","Yes",56,89,73,0]
["HI",85,{"$f":"IF(Table1[[#This Row],[Demographic Index (US percentile)]]=\"\",\"No\",IF(Table1[[#This Row],[Demographic Index (US percentile)]]>=80,\"Yes\", \"No\"))","v":"Yes"},"110050297676","MARISCO LTD","91-607 MALAKOLE ST","KAPOLEI","HI","HONOLULU","96707","No","Yes","No","Yes","None","Ship and Boat Building","","336611","","","","","HID984467712","","","","150030085021",{"v":2421,"d":"2,421"},{"v":0.629716403356876,"d":"63.0%"},{"v":0.152951518033406,"d":"15.3%"},{"v":0.852953325072284,"d":"85.3%"},{"v":0.406479481641468,"d":"40.6%"},{"v":0.092638036809816,"d":"9.3%"},{"v":0,"d":"0.0%"},85,62,86,69,54,0,87,82,"Yes","Yes",56,89,73,0]
["HI",null,{"$f":"IF(Table1[[#This Row],[Demographic Index (US percentile)]]=\"\",\"No\",IF(Table1[[#This Row],[Demographic Index (US percentile)]]>=80,\"Yes\", \"No\"))","v":"No"},"110070126772","ISLAND ENERGY SERVICES DOWNSTREAM LLC","91-480 MALAKOLE ST","KAPOLEI","HI","HONOLULU COUNTY","96707","No","No","No","Yes","None","Petroleum and Coal Products Manufacturing","","","324110","","","","","1004891","","","150039803001",0,{"v":0,"d":"0.0%"},{"v":0,"d":"0.0%"},{"v":0,"d":"0.0%"},{"v":0,"d":"0.0%"},{"v":0,"d":"0.0%"},{"v":0,"d":"0.0%"},0,0,0,0,0,0,0,0,"","",0,0,0,0]
["HI",null,{"$f":"IF(Table1[[#This Row],[Demographic Index (US percentile)]]=\"\",\"No\",IF(Table1[[#This Row],[Demographic Index (US percentile)]]>=80,\"Yes\", \"No\"))","v":"No"},"110070462047","PAR HAWAII REFINING - PAR WEST","91-480 MALAKOLE ST. BLDG CCB","KAPOLEI","HI","HONOLULU","96707","No","Yes","No","Yes","None","Petroleum and Coal Products Manufacturing","","324110","","","","","HIR000145482","","","","150039803001",0,{"v":0,"d":"0.0%"},{"v":0,"d":"0.0%"},{"v":0,"d":"0.0%"},{"v":0,"d":"0.0%"},{"v":0,"d":"0.0%"},{"v":0,"d":"0.0%"},0,0,0,0,0,0,0,0,"","",0,0,0,0]
["HI",86,{"$f":"IF(Table1[[#This Row],[Demographic Index (US percentile)]]=\"\",\"No\",IF(Table1[[#This Row],[Demographic Index (US percentile)]]>=80,\"Yes\", \"No\"))","v":"Yes"},"110070067656","YOUNG BROTHERS, LLC - HONOLULU PIERS 39 AND 40","1331 N NIMITZ HWY #39","HONOLULU","HI","HONOLULU","96817","No","Yes","No","Yes","None","Ship and Boat Building","","336611","","","","","HID006927123","","","","150030057001",{"v":1930,"d":"1,930"},{"v":0.641759190722921,"d":"64.2%"},{"v":0.268412065886314,"d":"26.8%"},{"v":0.878756476683937,"d":"87.9%"},{"v":0.404761904761904,"d":"40.5%"},{"v":0.221419975932611,"d":"22.1%"},{"v":0.394932935916542,"d":"39.5%"},86,91,88,69,83,97,89,98,"Yes","Yes",63,88,95,99]
["HI",null,{"$f":"IF(Table1[[#This Row],[Demographic Index (US percentile)]]=\"\",\"No\",IF(Table1[[#This Row],[Demographic Index (US percentile)]]>=80,\"Yes\", \"No\"))","v":"No"},"110000486340","BALL METAL BEVERAGE CONTAINER CORP","91-421 KOMOHANA ST","KAPOLEI","HI","HONOLULU","96707","Yes","No","Yes","Yes","Metals","Boiler, Tank, and Shipping Container Manufacturing","332431","","","332431","","96707RYNLD91320","","","1819511","","150039803001",0,{"v":0,"d":"0.0%"},{"v":0,"d":"0.0%"},{"v":0,"d":"0.0%"},{"v":0,"d":"0.0%"},{"v":0,"d":"0.0%"},{"v":0,"d":"0.0%"},0,0,0,0,0,0,0,0,"","",0,0,0,0]
["HI",null,{"$f":"IF(Table1[[#This Row],[Demographic Index (US percentile)]]=\"\",\"No\",IF(Table1[[#This Row],[Demographic Index (US percentile)]]>=80,\"Yes\", \"No\"))","v":"No"},"110070055322","ASSOCIATED STEEL WORKERS FABRICATION SHOP","91-207 KALAELOA BLVD","KAPOLEI","HI","HONOLULU COUNTY","96707","Yes","No","Yes","Yes","Metals","Architectural and Structural Metals Manufacturing","332312","","","","","9670WSSCTD9127K","","","","","150039803001",0,{"v":0,"d":"0.0%"},{"v":0,"d":"0.0%"},{"v":0,"d":"0.0%"},{"v":0,"d":"0.0%"},{"v":0,"d":"0.0%"},{"v":0,"d":"0.0%"},0,0,0,0,0,0,0,0,"","",0,0,0,0]
["HI",null,{"$f":"IF(Table1[[#This Row],[Demographic Index (US percentile)]]=\"\",\"No\",IF(Table1[[#This Row],[Demographic Index (US percentile)]]>=80,\"Yes\", \"No\"))","v":"No"},"110070870564","COCA-COLA USA HONOLULU SYRUP PLANT","91-233 KALAELOA BLVD","KAPOLEI","HI","HONOLULU","96707","No","Yes","Yes","Yes","Food & Beverage","Other Food Manufacturing","","31193","","","","","HID055777023","","","","150039803001",0,{"v":0,"d":"0.0%"},{"v":0,"d":"0.0%"},{"v":0,"d":"0.0%"},{"v":0,"d":"0.0%"},{"v":0,"d":"0.0%"},{"v":0,"d":"0.0%"},0,0,0,0,0,0,0,0,"","",0,0,0,0]
["HI",null,{"$f":"IF(Table1[[#This Row],[Demographic Index (US percentile)]]=\"\",\"No\",IF(Table1[[#This Row],[Demographic Index (US percentile)]]>=80,\"Yes\", \"No\"))","v":"No"},"110000486313","HONOLULU WOOD TREATING LLC","91-291 HANUA STREET","KAPOLEI","HI","HONOLULU","96707","Yes","No","No","Yes","None","Sawmills and Wood Preservation","321114","","","","","96707HNLLW91291","","","","","150039803001",0,{"v":0,"d":"0.0%"},{"v":0,"d":"0.0%"},{"v":0,"d":"0.0%"},{"v":0,"d":"0.0%"},{"v":0,"d":"0.0%"},{"v":0,"d":"0.0%"},0,0,0,0,0,0,0,0,"","",0,0,0,0]
["HI",null,{"$f":"IF(Table1[[#This Row],[Demographic Index (US percentile)]]=\"\",\"No\",IF(Table1[[#This Row],[Demographic Index (US percentile)]]>=80,\"Yes\", \"No\"))","v":"No"},"110000486304","CHEVRON PRODUCTS CO - HAWAII REFINERY","91-480 MALAKOLE ST","KAPOLEI","HI","HONOLULU COUNTY","96707","Yes","Yes","No","Yes","None","Petroleum and Petroleum Products Merchant Wholesalers ","424710","424710","324110","324110","324110","96707CHVRN91480","HIT160010005","1013281","1818411, 947811","HI0000329","150039803001",0,{"v":0,"d":"0.0%"},{"v":0,"d":"0.0%"},{"v":0,"d":"0.0%"},{"v":0,"d":"0.0%"},{"v":0,"d":"0.0%"},{"v":0,"d":"0.0%"},0,0,0,0,0,0,0,0,"","",0,0,0,0]
["HI",64,{"$f":"IF(Table1[[#This Row],[Demographic Index (US percentile)]]=\"\",\"No\",IF(Table1[[#This Row],[Demographic Index (US percentile)]]>=80,\"Yes\", \"No\"))","v":"No"},"110017886867","TOPA FINANCIAL CENTER","745 FORT STREET","HONOLULU","HI","HONOLULU","96813","No","No","No","Yes","None","Tobacco Manufacturing","","","","","312230","","","","","HI0021768","150030040001",860,{"v":0.394186046511628,"d":"39.4%"},{"v":0.074155855236106,"d":"7.4%"},{"v":0.6930232558139531,"d":"69.3%"},{"v":0.095348837209302,"d":"9.5%"},{"v":0.010403120936281,"d":"1.0%"},{"v":0.023346303501946,"d":"2.3%"},64,18,78,16,12,65,22,31,"","",31,28,20,52]
["HI",null,{"$f":"IF(Table1[[#This Row],[Demographic Index (US percentile)]]=\"\",\"No\",IF(Table1[[#This Row],[Demographic Index (US percentile)]]>=80,\"Yes\", \"No\"))","v":"No"},"110071162280","REFINERY KAPOLEI","91-325 KOMOHANA STREET","KAPOLEI","HI",0,"96707","No","No","No","Yes","None","Petroleum and Coal Products Manufacturing","","","324110","","","","","1006932","","","150039803001",0,{"v":0,"d":"0.0%"},{"v":0,"d":"0.0%"},{"v":0,"d":"0.0%"},{"v":0,"d":"0.0%"},{"v":0,"d":"0.0%"},{"v":0,"d":"0.0%"},0,0,0,0,0,0,0,0,"","",0,0,0,0]
["HI",null,{"$f":"IF(Table1[[#This Row],[Demographic Index (US percentile)]]=\"\",\"No\",IF(Table1[[#This Row],[Demographic Index (US percentile)]]>=80,\"Yes\", \"No\"))","v":"No"},"110000486322","TESORO HAWAII REFINERY","91-325 KOMOHANA ST","KAPOLEI","HI","HONOLULU COUNTY","96707","Yes","Yes","No","Yes","None","Petroleum and Coal Products Manufacturing","324110","32411","","324110","","96707HWNND91325","HID056786395","","1818511","","150039803001",0,{"v":0,"d":"0.0%"},{"v":0,"d":"0.0%"},{"v":0,"d":"0.0%"},{"v":0,"d":"0.0%"},{"v":0,"d":"0.0%"},{"v":0,"d":"0.0%"},0,0,0,0,0,0,0,0,"","",0,0,0,0]
["HI",null,{"$f":"IF(Table1[[#This Row],[Demographic Index (US percentile)]]=\"\",\"No\",IF(Table1[[#This Row],[Demographic Index (US percentile)]]>=80,\"Yes\", \"No\"))","v":"No"},"110005728926","TESLA SERVICE HONOLULU","746 AUAHI ST","HONOLULU","HI","HONOLULU","96813","No","Yes","Yes","No","Automotive","Automotive Repair and Maintenance","","811111","","","","","HID984469957","","","","150030038015",0,{"v":0,"d":"0.0%"},{"v":0.031179487179487,"d":"3.1%"},{"v":0,"d":"0.0%"},{"v":0,"d":"0.0%"},{"v":0,"d":"0.0%"},{"v":0,"d":"0.0%"},0,1,0,0,0,0,0,5,"","",0,0,0,0]
["HI",81,{"$f":"IF(Table1[[#This Row],[Demographic Index (US percentile)]]=\"\",\"No\",IF(Table1[[#This Row],[Demographic Index (US percentile)]]>=80,\"Yes\", \"No\"))","v":"Yes"},"110009360360","HAWAI'I INDEPENDENT ENERGY MAUI KAHULUI TERMINAL","140-A HOBRON AVENUE","KAHULUI","HI","MAUI COUNTY","96732","No","Yes","Yes","No","Automotive","Automotive Repair and Maintenance","","811111","","","","","HIR000074492","","","","150090319001",{"v":2663,"d":"2,663"},{"v":0.583740142696207,"d":"58.4%"},{"v":0.174402020010404,"d":"17.4%"},{"v":0.819376642883965,"d":"81.9%"},{"v":0.3481036425084491,"d":"34.8%"},{"v":0.167482327351821,"d":"16.7%"},{"v":0.116136919315403,"d":"11.6%"},81,70,84,61,75,87,78,89,"","Yes",49,83,90,84]
["HI",83,{"$f":"IF(Table1[[#This Row],[Demographic Index (US percentile)]]=\"\",\"No\",IF(Table1[[#This Row],[Demographic Index (US percentile)]]>=80,\"Yes\", \"No\"))","v":"Yes"},"110071079004","PACIFIC BIODIESEL","16-222 MIKAHALA ST","KEAAU","HI","HAWAII COUNTY","96749","Yes","No","No","Yes","None","Petroleum and Coal Products Manufacturing","324110","","","","","9674WPCFCB1624M","","","","","150010210132",{"v":1489,"d":"1,489"},{"v":0.602753525856279,"d":"60.3%"},{"v":0.153406273016304,"d":"15.3%"},{"v":0.832773673606447,"d":"83.3%"},{"v":0.372733378106111,"d":"37.3%"},{"v":0.080113100848256,"d":"8.0%"},{"v":0.06203007518797,"d":"6.2%"},83,62,85,65,49,78,84,82,"Yes","Yes",52,86,67,71]
["HI",87,{"$f":"IF(Table1[[#This Row],[Demographic Index (US percentile)]]=\"\",\"No\",IF(Table1[[#This Row],[Demographic Index (US percentile)]]>=80,\"Yes\", \"No\"))","v":"Yes"},"110059254505","MAUNA LOA MACADAMIA NUT PLANT","16-701 MACADAMIA RD.","KEAAU","HI","HAWAII","96749","No","No","Yes","Yes","Food & Beverage","Other Food Manufacturing","","","","311911","","","","","16858111","","150010210033",{"v":2480,"d":"2,480"},{"v":0.664717741935483,"d":"66.5%"},{"v":0.182912399516608,"d":"18.3%"},{"v":0.866532258064516,"d":"86.7%"},{"v":0.462903225806451,"d":"46.3%"},{"v":0.105188343994314,"d":"10.5%"},{"v":0.021403091557669,"d":"2.1%"},87,73,87,76,58,64,92,91,"Yes","Yes",60,92,77,50]

{"sheet":"TRI detail","index":2,"n_rows":42,"n_cols":41,"rows_kept":42}
["TRI FACILITY ID","TRI Facility Report","FRS ID","Facility Name","Street Address","City","County","State","Zip Code","NEA Sectors (NEA designation is from the Target Facilities List)","Sector (3-digit NAICS)","Subsector (6-digit NAICS)","Primary NAICS Code","Primary NAICS Description","Submitted Parent Company","Document Control Number","Chemical Name","TRI Chemical ID","Fugitive Air Releases (lb, 2021)","Stack Air Releases (lb, 2021)","Total Onsite Air Releases (lb, 2021)","Onsite Water Releases (lb, 2021)","Total Onsite Land Releases (lb, 2021)","Total On-site Releases (lb, 2021)","Total Off-site Releases (gross) (lb, 2021)","Total On-and Off- Site Releases (gross) (lb, 2021)","On-site \"Contained\" Releases (8.1a) (lb, 2021)","Other On-site Releases (8.1b) (lb, 2021)","Off-site \"Contained\" Releases (8.1c) (lb, 2021)","Other Off-site Releases (8.1d) (lb, 2021)","On-site Energy Recovery (lb, 2021)","Off-site Energy Recovery (lb, 2021)","On-site Recycling (lb, 2021)","Off-site Recycling (lb, 2021)","On-site Treatment (lb, 2021)","Off-site Treatment (lb, 2021)","Total Production-Related Waste (lb, 2021)","Non-Production Related Waste (lb, 2021)","Public Contact Name","Public Contact Phone","Public Contact e-mail"]
["9674WPCFCB1624M",{"$f":"HYPERLINK(_xlfn.CONCAT(\"https://enviro.epa.gov/facts/tri/ef-facilities/#/Facility/\",A2),\"TRI Facility Report\")","v":"TRI Facility Report"},"110071079004","PACIFIC BIODIESEL LLC","16-240 MIKAHALA ST","KEAAU","HAWAII","HI","96749","None","Petroleum and Coal Products Manufacturing","Petroleum Refineries","324110","Petroleum Refineries","NA","1321219842667","Sulfuric acid (acid aerosols including mists, vapors, gas, fog, and other airborne forms of any particle size)","0007664939",0,0,0,0,0,0,0,0,{"$nulls":10},0,null,"JENNA LONG","8088773144","JENNA@BIODIESEL.COM"]
["9674WPCFCB1624M",{"$f":"HYPERLINK(_xlfn.CONCAT(\"https://enviro.epa.gov/facts/tri/ef-facilities/#/Facility/\",A3),\"TRI Facility Report\")","v":"TRI Facility Report"},"110071079004","PACIFIC BIODIESEL LLC","16-240 MIKAHALA ST","KEAAU","HAWAII","HI","96749","None","Petroleum and Coal Products Manufacturing","Petroleum Refineries","324110","Petroleum Refineries","NA","1321219849864","Methanol","0000067561",15520,0,15520,0,0,15520,0,15520,null,15520,{"$nulls":8},15520,null,"JENNA LONG","8088773144","JENNA@BIODIESEL.COM"]
["96707HWNND91325",{"$f":"HYPERLINK(_xlfn.CONCAT(\"https://enviro.epa.gov/facts/tri/ef-facilities/#/Facility/\",A4),\"TRI Facility Report\")","v":"TRI Facility Report"},"110000486322","PAR HAWAII REFINING LLC","91-325 KOMOHANA ST","KAPOLEI","HONOLULU","HI","96707","None","Petroleum and Coal Products Manufacturing","Petroleum Refineries","324110","Petroleum Refineries","PAR PACIFIC HOLDINGS INC.","1321220083277","1,2,4-Trimethylbenzene","0000095636",3034.52,188.51,3223.03,0,0,3223.03,15.4227,3238.4527,null,3223.03,15.4227,{"$nulls":5},"610","0.9837",3849.4364000000005,null,"NATHANIEL BILETNIKOFF","8085473836","NBILETNIKOFF@PARPACIFIC.COM"]
["96707HWNND91325",{"$f":"HYPERLINK(_xlfn.CONCAT(\"https://enviro.epa.gov/facts/tri/ef-facilities/#/Facility/\",A5),\"TRI Facility Report\")","v":"TRI Facility Report"},"110000486322","PAR HAWAII REFINING LLC","91-325 KOMOHANA ST","KAPOLEI","HONOLULU","HI","96707","None","Petroleum and Coal Products Manufacturing","Petroleum Refineries","324110","Petroleum Refineries","PAR PACIFIC HOLDINGS INC.","1321220083289","Ammonia","0007664417",1420.35,31315.25,32735.6,0.0009,2659.41,35395.0109,0,35395.0109,null,35395.0109,{"$nulls":6},"6149",null,41544.0109,null,"NATHANIEL BILETNIKOFF","8085473836","NBILETNIKOFF@PARPACIFIC.COM"]
["96707HWNND91325",{"$f":"HYPERLINK(_xlfn.CONCAT(\"https://enviro.epa.gov/facts/tri/ef-facilities/#/Facility/\",A6),\"TRI Facility Report\")","v":"TRI Facility Report"},"110000486322","PAR HAWAII REFINING LLC","91-325 KOMOHANA ST","KAPOLEI","HONOLULU","HI","96707","None","Petroleum and Coal Products Manufacturing","Petroleum Refineries","324110","Petroleum Refineries","PAR PACIFIC HOLDINGS INC.","1321220083291","Benzene","0000071432",7984,2460,10444,0,0,10444,1.6487,10445.6487,null,10444,1.6487,null,null,"0.003","7064",null,"9828","5.0059",27342.657600000002,null,"NATHANIEL BILETNIKOFF","8085473836","NBILETNIKOFF@PARPACIFIC.COM"]
["96707HWNND91325",{"$f":"HYPERLINK(_xlfn.CONCAT(\"https://enviro.epa.gov/facts/tri/ef-facilities/#/Facility/\",A7),\"TRI Facility Report\")","v":"TRI Facility Report"},"110000486322","PAR HAWAII REFINING LLC","91-325 KOMOHANA ST","KAPOLEI","HONOLULU","HI","96707","None","Petroleum and Coal Products Manufacturing","Petroleum Refineries","324110","Petroleum Refineries","PAR PACIFIC HOLDINGS INC.","1321220083303","Benzo[g,h,i]perylene","0000191242",12.19,0.04,12.23,0,0,12.23,0,12.23,null,12.23,{"$nulls":3},"0.261",{"$nulls":4},12.491,null,"NATHANIEL BILETNIKOFF","8085473836","NBILETNIKOFF@PARPACIFIC.COM"]
["9670WPRWST91553",{"$f":"HYPERLINK(_xlfn.CONCAT(\"https://enviro.epa.gov/facts/tri/ef-facilities/#/Facility/\",A8),\"TRI Facility Report\")","v":"TRI Facility Report"},"110070788689","PAR WEST REFINERY","91-480 MALAKOLE ST - CCB BUILDING","KAPOLEI","HONOLULU","HI","96707","None","Petroleum and Coal Products Manufacturing","Petroleum Refineries","324110","Petroleum Refineries","PAR PACIFIC HOLDINGS INC","1321220083834","Mercury compounds","N458",0,0.064,0.064,1.55,0,1.614,82.8224,84.4364,null,1.614,2.946,79.8764,{"$nulls":3},193.2,null,null,277.6364,null,"NATHANIEL BILETNIKOFF","8085473836","NBILETNIKOFF@PARPACIFIC.COM"]
["96707HWNND91325",{"$f":"HYPERLINK(_xlfn.CONCAT(\"https://enviro.epa.gov/facts/tri/ef-facilities/#/Facility/\",A9),\"TRI Facility Report\")","v":"TRI Facility Report"},"110000486322","PAR HAWAII REFINING LLC","91-325 KOMOHANA ST","KAPOLEI","HONOLULU","HI","96707","None","Petroleum and Coal Products Manufacturing","Petroleum Refineries","324110","Petroleum Refineries","PAR PACIFIC HOLDINGS INC.","1321220084317","Carbonyl sulfide","0000463581",0,526.1,526.1,0,0,526.1,0,526.1,null,526.1,{"$nulls":6},"25779",null,26305.1,null,"NATHANIEL BILETNIKOFF","8085473836","NBILETNIKOFF@PARPACIFIC.COM"]
["96707HWNND91325",{"$f":"HYPERLINK(_xlfn.CONCAT(\"https://enviro.epa.gov/facts/tri/ef-facilities/#/Facility/\",A10),\"TRI Facility Report\")","v":"TRI Facility Report"},"110000486322","PAR HAWAII REFINING LLC","91-325 KOMOHANA ST","KAPOLEI","HONOLULU","HI","96707","None","Petroleum and Coal Products Manufacturing","Petroleum Refineries","324110","Petroleum Refineries","PAR PACIFIC HOLDINGS INC.","1321220084329","Certain glycol ethers","N230",0,0,0,0,0,0,0,0,{"$nulls":10},0,"0","NATHANIEL BILETNIKOFF","8085473836","NBILETNIKOFF@PARPACIFIC.COM"]
["96707HWNND91325",{"$f":"HYPERLINK(_xlfn.CONCAT(\"https://enviro.epa.gov/facts/tri/ef-facilities/#/Facility/\",A11),\"TRI Facility Report\")","v":"TRI Facility Report"},"110000486322","PAR HAWAII REFINING LLC","91-325 KOMOHANA ST","KAPOLEI","HONOLULU","HI","96707","None","Petroleum and Coal Products Manufacturing","Petroleum Refineries","324110","Petroleum Refineries","PAR PACIFIC HOLDINGS INC.","1321220084331","Cyclohexane","0000110827",4577.27,3950.56,8527.83,0,0,8527.83,0,8527.83,null,8527.83,{"$nulls":6},"828",null,9355.83,null,"NATHANIEL BILETNIKOFF","8085473836","NBILETNIKOFF@PARPACIFIC.COM"]
["96707HWNND91325",{"$f":"HYPERLINK(_xlfn.CONCAT(\"https://enviro.epa.gov/facts/tri/ef-facilities/#/Facility/\",A12),\"TRI Facility Report\")","v":"TRI Facility Report"},"110000486322","PAR HAWAII REFINING LLC","91-325 KOMOHANA ST","KAPOLEI","HONOLULU","HI","96707","None","Petroleum and Coal Products Manufacturing","Petroleum Refineries","324110","Petroleum Refineries","PAR PACIFIC HOLDINGS INC.","1321220084343","Dioxin and dioxin-like compounds","N150",0,0.00028648375514,0.00028648375514,0,1.649717146E-6,0.000288133472286,0,0.000288133472286,null,0.000288133472286,{"$nulls":8},0.000288133472286,null,"NATHANIEL BILETNIKOFF","8085473836","NBILETNIKOFF@PARPACIFIC.COM"]
["96707HWNND91325",{"$f":"HYPERLINK(_xlfn.CONCAT(\"https://enviro.epa.gov/facts/tri/ef-facilities/#/Facility/\",A13),\"TRI Facility Report\")","v":"TRI Facility Report"},"110000486322","PAR HAWAII REFINING LLC","91-325 KOMOHANA ST","KAPOLEI","HONOLULU","HI","96707","None","Petroleum and Coal Products Manufacturing","Petroleum Refineries","324110","Petroleum Refineries","PAR PACIFIC HOLDINGS INC.","1321220084356","Ethylbenzene","0000100414",2615.09,335.33,2950.42,0,0,2950.42,17.21,2967.63,null,2950.42,17.21,{"$nulls":3},"257",null,"549","10.2061",3783.8361,null,"NATHANIEL BILETNIKOFF","8085473836","NBILETNIKOFF@PARPACIFIC.COM"]
["96707HWNND91325",{"$f":"HYPERLINK(_xlfn.CONCAT(\"https://enviro.epa.gov/facts/tri/ef-facilities/#/Facility/\",A14),\"TRI Facility Report\")","v":"TRI Facility Report"},"110000486322","PAR HAWAII REFINING LLC","91-325 KOMOHANA ST","KAPOLEI","HONOLULU","HI","96707","None","Petroleum and Coal Products Manufacturing","Petroleum Refineries","324110","Petroleum Refineries","PAR PACIFIC HOLDINGS INC.","1321220084368","Ethylene","0000074851",0,0,0,0,0,0,0,0,null,0,{"$nulls":8},0,null,"NATHANIEL BILETNIKOFF","8085473836","NBILETNIKOFF@PARPACIFIC.COM"]
["96707HWNND91325",{"$f":"HYPERLINK(_xlfn.CONCAT(\"https://enviro.epa.gov/facts/tri/ef-facilities/#/Facility/\",A15),\"TRI Facility Report\")","v":"TRI Facility Report"},"110000486322","PAR HAWAII REFINING LLC","91-325 KOMOHANA ST","KAPOLEI","HONOLULU","HI","96707","None","Petroleum and Coal Products Manufacturing","Petroleum Refineries","324110","Petroleum Refineries","PAR PACIFIC HOLDINGS INC.","1321220084370","Hydrogen sulfide","0007783064",0.05732,738.73,738.78732,0,0,738.78732,0,738.78732,null,738.78732,null,null,"21304.4",{"$nulls":3},"478184.4",null,500227.58732000005,null,"NATHANIEL BILETNIKOFF","8085473836","NBILETNIKOFF@PARPACIFIC.COM"]
["96707HWNND91325",{"$f":"HYPERLINK(_xlfn.CONCAT(\"https://enviro.epa.gov/facts/tri/ef-facilities/#/Facility/\",A16),\"TRI Facility Report\")","v":"TRI Facility Report"},"110000486322","PAR HAWAII REFINING LLC","91-325 KOMOHANA ST","KAPOLEI","HONOLULU","HI","96707","None","Petroleum and Coal Products Manufacturing","Petroleum Refineries","324110","Petroleum Refineries","PAR PACIFIC HOLDINGS INC.","1321220084382","Lead compounds","N420",0,42.99,42.99,5.4e-05,18.18,61.170054,2.5197,63.689754,null,61.170054,0.738,1.7817,{"$nulls":3},0.011,null,null,63.700754,null,"NATHANIEL BILETNIKOFF","8085473836","NBILETNIKOFF@PARPACIFIC.COM"]
["96707HWNND91325",{"$f":"HYPERLINK(_xlfn.CONCAT(\"https://enviro.epa.gov/facts/tri/ef-facilities/#/Facility/\",A17),\"TRI Facility Report\")","v":"TRI Facility Report"},"110000486322","PAR HAWAII REFINING LLC","91-325 KOMOHANA ST","KAPOLEI","HONOLULU","HI","96707","None","Petroleum and Coal Products Manufacturing","Petroleum Refineries","324110","Petroleum Refineries","PAR PACIFIC HOLDINGS INC.","1321220084394","Mercury compounds","N458",0,4.59,4.59,7e-07,2.851,7.4410007,31.6162,39.0572007,null,7.4410007,4.6617,26.9545,{"$nulls":3},0.0003,null,null,39.0575007,null,"NATHANIEL BILETNIKOFF","8085473836","NBILETNIKOFF@PARPACIFIC.COM"]
["96707HWNND91325",{"$f":"HYPERLINK(_xlfn.CONCAT(\"https://enviro.epa.gov/facts/tri/ef-facilities/#/Facility/\",A18),\"TRI Facility Report\")","v":"TRI Facility Report"},"110000486322","PAR HAWAII REFINING LLC","91-325 KOMOHANA ST","KAPOLEI","HONOLULU","HI","96707","None","Petroleum and Coal Products Manufacturing","Petroleum Refineries","324110","Petroleum Refineries","PAR PACIFIC HOLDINGS INC.","1321220084406","n-Hexane","0000110543",25686.6,21229.267,46915.867,0,0,46915.867,2.8E-3,46915.8698,null,46915.867,2.8E-3,{"$nulls":5},"419","0.0158",47334.8856,null,"NATHANIEL BILETNIKOFF","8085473836","NBILETNIKOFF@PARPACIFIC.COM"]
["96707HWNND91325",{"$f":"HYPERLINK(_xlfn.CONCAT(\"https://enviro.epa.gov/facts/tri/ef-facilities/#/Facility/\",A19),\"TRI Facility Report\")","v":"TRI Facility Report"},"110000486322","PAR HAWAII REFINING LLC","91-325 KOMOHANA ST","KAPOLEI","HONOLULU","HI","96707","None","Petroleum and Coal Products Manufacturing","Petroleum Refineries","324110","Petroleum Refineries","PAR PACIFIC HOLDINGS INC.","1321220084418","Naphthalene","0000091203",2043.77,85.4,2129.17,0,3.59,2132.76,15.9282,2148.6882,null,2132.76,15.9282,null,null,"0.0123",{"$nulls":3},"28.8575",2177.558,null,"NATHANIEL BILETNIKOFF","8085473836","NBILETNIKOFF@PARPACIFIC.COM"]
["96707HWNND91325",{"$f":"HYPERLINK(_xlfn.CONCAT(\"https://enviro.epa.gov/facts/tri/ef-facilities/#/Facility/\",A20),\"TRI Facility Report\")","v":"TRI Facility Report"},"110000486322","PAR HAWAII REFINING LLC","91-325 KOMOHANA ST","KAPOLEI","HONOLULU","HI","96707","None","Petroleum and Coal Products Manufacturing","Petroleum Refineries","324110","Petroleum Refineries","PAR PACIFIC HOLDINGS INC.","1321220084420","Polycyclic aromatic compounds","N590",154.67,9.21,163.88,0,0,163.88,0,163.88,null,163.88,{"$nulls":8},163.88,null,"NATHANIEL BILETNIKOFF","8085473836","NBILETNIKOFF@PARPACIFIC.COM"]
["96707HWNND91325",{"$f":"HYPERLINK(_xlfn.CONCAT(\"https://enviro.epa.gov/facts/tri/ef-facilities/#/Facility/\",A21),\"TRI Facility Report\")","v":"TRI Facility Report"},"110000486322","PAR HAWAII REFINING LLC","91-325 KOMOHANA ST","KAPOLEI","HONOLULU","HI","96707","None","Petroleum and Coal Products Manufacturing","Petroleum Refineries","324110","Petroleum Refineries","PAR PACIFIC HOLDINGS INC.","1321220084432","Propylene","0000115071",0,4832.16,4832.16,0,0,4832.16,0,4832.16,null,4832.16,{"$nulls":8},4832.16,null,"NATHANIEL BILETNIKOFF","8085473836","NBILETNIKOFF@PARPACIFIC.COM"]
["96707HWNND91325",{"$f":"HYPERLINK(_xlfn.CONCAT(\"https://enviro.epa.gov/facts/tri/ef-facilities/#/Facility/\",A22),\"TRI Facility Report\")","v":"TRI Facility Report"},"110000486322","PAR HAWAII REFINING LLC","91-325 KOMOHANA ST","KAPOLEI","HONOLULU","HI","96707","None","Petroleum and Coal Products Manufacturing","Petroleum Refineries","324110","Petroleum Refineries","PAR PACIFIC HOLDINGS INC.","1321220084444","Sulfuric acid (acid aerosols including mists, vapors, gas, fog, and other airborne forms of any particle size)","0007664939",0,35700.87,35700.87,0,0,35700.87,0,35700.87,null,35700.87,{"$nulls":8},35700.87,null,"NATHANIEL BILETNIKOFF","8085473836","NBILETNIKOFF@PARPACIFIC.COM"]
["96707HWNND91325",{"$f":"HYPERLINK(_xlfn.CONCAT(\"https://enviro.epa.gov/facts/tri/ef-facilities/#/Facility/\",A23),\"TRI Facility Report\")","v":"TRI Facility Report"},"110000486322","PAR HAWAII REFINING LLC","91-325 KOMOHANA ST","KAPOLEI","HONOLULU","HI","96707","None","Petroleum and Coal Products Manufacturing","Petroleum Refineries","324110","Petroleum Refineries","PAR PACIFIC HOLDINGS INC.","1321220084457","Tetrachloroethylene","0000127184",0,0,0,0,0,0,0,0,null,0,{"$nulls":8},0,null,"NATHANIEL BILETNIKOFF","8085473836","NBILETNIKOFF@PARPACIFIC.COM"]
["96707HWNND91325",{"$f":"HYPERLINK(_xlfn.CONCAT(\"https://enviro.epa.gov/facts/tri/ef-facilities/#/Facility/\",A24),\"TRI Facility Report\")","v":"TRI Facility Report"},"110000486322","PAR HAWAII REFINING LLC","91-325 KOMOHANA ST","KAPOLEI","HONOLULU","HI","96707","None","Petroleum and Coal Products Manufacturing","Petroleum Refineries","324110","Petroleum Refineries","PAR PACIFIC HOLDINGS INC.","1321220084469","Toluene","0000108883",11311.2,3648.213,14959.413,0,0,14959.413,28.6581,14988.0711,null,14959.413,28.6581,{"$nulls":3},"4223",null,"7524","100.0232",26835.0943,null,"NATHANIEL BILETNIKOFF","8085473836","NBILETNIKOFF@PARPACIFIC.COM"]
["96707HWNND91325",{"$f":"HYPERLINK(_xlfn.CONCAT(\"https://enviro.epa.gov/facts/tri/ef-facilities/#/Facility/\",A25),\"TRI Facility Report\")","v":"TRI Facility Report"},"110000486322","PAR HAWAII REFINING LLC","91-325 KOMOHANA ST","KAPOLEI","HONOLULU","HI","96707","None","Petroleum and Coal Products Manufacturing","Petroleum Refineries","324110","Petroleum Refineries","PAR PACIFIC HOLDINGS INC.","1321220084471","Xylene (mixed isomers)","0001330207",10257,2192,12449,0,0,12449,53.8774,12502.8774,null,12449,53.8774,null,null,"0.001","1190",null,"4606.7","147.2295",18446.8079,null,"NATHANIEL BILETNIKOFF","8085473836","NBILETNIKOFF@PARPACIFIC.COM"]
["9670WSSCTD9127K",{"$f":"HYPERLINK(_xlfn.CONCAT(\"https://enviro.epa.gov/facts/tri/ef-facilities/#/Facility/\",A26),\"TRI Facility Report\")","v":"TRI Facility Report"},"110070055322","CMC STEEL FABRICATORS INC. D.B.A. ASSOCIATED STEEL WORKERS","91-207 KALAELOA BLVD","KAPOLEI","HONOLULU","HI","96707","Metals","Fabricated Metal Product Manufacturing","Fabricated Structural Metal Manufacturing ","332312","Fabricated Structural Metal Manufacturing","COMMERCIAL METALS CO","1321220134213","Nickel compounds","N495",0,0,0,0,0,0,0,0,{"$nulls":10},0,"0","CY OTSUKA","8088923029","CY.OTSUKA@CMC.COM"]
["96707RYNLD91320",{"$f":"HYPERLINK(_xlfn.CONCAT(\"https://enviro.epa.gov/facts/tri/ef-facilities/#/Facility/\",A27),\"TRI Facility Report\")","v":"TRI Facility Report"},"110000486340","BALL METAL BEVERAGE CONTAINER CORP","91-320 KOMOHANA ST","KAPOLEI","HONOLULU","HI","96707","Metals","Fabricated Metal Product Manufacturing","Metal Can Manufacturing ","332431","Metal Can Manufacturing","BALL CORP","1321220209961","Certain glycol ethers","N230",7562,47235,54797,0,0,54797,0,54797,null,54797,{"$nulls":3},"53.6",{"$nulls":4},54850.6,null,"SCOTT MCCARTY","3034605774","SMCCARTY@BALL.COM"]
["96707RYNLD91320",{"$f":"HYPERLINK(_xlfn.CONCAT(\"https://enviro.epa.gov/facts/tri/ef-facilities/#/Facility/\",A28),\"TRI Facility Report\")","v":"TRI Facility Report"},"110000486340","BALL METAL BEVERAGE CONTAINER CORP","91-320 KOMOHANA ST","KAPOLEI","HONOLULU","HI","96707","Metals","Fabricated Metal Product Manufacturing","Metal Can Manufacturing ","332431","Metal Can Manufacturing","BALL CORP","1321220209973","n-Butyl alcohol","0000071363",3893,24317,28210,0,0,28210,0,28210,null,28210,{"$nulls":3},"22.1",{"$nulls":4},28232.1,null,"SCOTT MCCARTY","3034605774","SMCCARTY@BALL.COM"]
["96707RYNLD91320",{"$f":"HYPERLINK(_xlfn.CONCAT(\"https://enviro.epa.gov/facts/tri/ef-facilities/#/Facility/\",A29),\"TRI Facility Report\")","v":"TRI Facility Report"},"110000486340","BALL METAL BEVERAGE CONTAINER CORP","91-320 KOMOHANA ST","KAPOLEI","HONOLULU","HI","96707","Metals","Fabricated Metal Product Manufacturing","Metal Can Manufacturing ","332431","Metal Can Manufacturing","BALL CORP","1321220209985","Sulfuric acid (acid aerosols including mists, vapors, gas, fog, and other airborne forms of any particle size)","0007664939",0,0,0,0,0,0,0,0,{"$nulls":10},0,"0","SCOTT MCCARTY","3034605774","SMCCARTY@BALL.COM"]
["96707RYNLD91320",{"$f":"HYPERLINK(_xlfn.CONCAT(\"https://enviro.epa.gov/facts/tri/ef-facilities/#/Facility/\",A30),\"TRI Facility Report\")","v":"TRI Facility Report"},"110000486340","BALL METAL BEVERAGE CONTAINER CORP","91-320 KOMOHANA ST","KAPOLEI","HONOLULU","HI","96707","Metals","Fabricated Metal Product Manufacturing","Metal Can Manufacturing ","332431","Metal Can Manufacturing","BALL CORP","1321220209997","Lead","0007439921",0,0,0,0,1.01,1.01,1.3,2.31,null,1.01,1.3,{"$nulls":7},2.31,null,"SCOTT MCCARTY","3034605774","SMCCARTY@BALL.COM"]
["96707HNLLW91291",{"$f":"HYPERLINK(_xlfn.CONCAT(\"https://enviro.epa.gov/facts/tri/ef-facilities/#/Facility/\",A31),\"TRI Facility Report\")","v":"TRI Facility Report"},"110000486313","HONOLULU WOOD TREATING LLC","91-291 HANUA ST","KAPOLEI","HONOLULU","HI","96707","None","Wood Product Manufacturing","Wood Preservation ","321114","Wood Preservation","HONOLULU WOOD TREATING LLC","1321220453777","Diisocyanates","N120",0,0,0,0,0,0,0,0,{"$nulls":10},0,"0","OSBALDO ALVAREZ","8087281280","OALVAREZ@HONSADOR.COM"]
["96707CHVRN91480",{"$f":"HYPERLINK(_xlfn.CONCAT(\"https://enviro.epa.gov/facts/tri/ef-facilities/#/Facility/\",A32),\"TRI Facility Report\")","v":"TRI Facility Report"},"110000486304","IES DOWNSTREAM LLC - KAPOLEI TERMINAL","91-480 MALAKOLE ST","KAPOLEI","HONOLULU","HI","96707","None","Merchant Wholesalers, Nondurable Goods ","Petroleum Bulk Stations and Terminals ","424710","Petroleum Bulk Stations and Terminals","IES DOWNSTREAM LLC","1321220501264","Benzene","0000071432",15,580,595,0,0,595,540,1135,null,595,540,{"$nulls":7},1135,null,"GAIL GODENZI","8086823113","GAIL.GODENZI@ISLANDENERGYSERVICES.COM"]
["96707CHVRN91480",{"$f":"HYPERLINK(_xlfn.CONCAT(\"https://enviro.epa.gov/facts/tri/ef-facilities/#/Facility/\",A33),\"TRI Facility Report\")","v":"TRI Facility Report"},"110000486304","IES DOWNSTREAM LLC - KAPOLEI TERMINAL","91-480 MALAKOLE ST","KAPOLEI","HONOLULU","HI","96707","None","Merchant Wholesalers, Nondurable Goods ","Petroleum Bulk Stations and Terminals ","424710","Petroleum Bulk Stations and Terminals","IES DOWNSTREAM LLC","1321220501276","Toluene","0000108883",140,1200,1340,0,0,1340,0,1340,null,1340,{"$nulls":8},1340,null,"GAIL GODENZI","8086823113","GAIL.GODENZI@ISLANDENERGYSERVICES.COM"]
["96707CHVRN91480",{"$f":"HYPERLINK(_xlfn.CONCAT(\"https://enviro.epa.gov/facts/tri/ef-facilities/#/Facility/\",A34),\"TRI Facility Report\")","v":"TRI Facility Report"},"110000486304","IES DOWNSTREAM LLC - KAPOLEI TERMINAL","91-480 MALAKOLE ST","KAPOLEI","HONOLULU","HI","96707","None","Merchant Wholesalers, Nondurable Goods ","Petroleum Bulk Stations and Terminals ","424710","Petroleum Bulk Stations and Terminals","IES DOWNSTREAM LLC","1321220501288","Xylene (mixed isomers)","0001330207",510,1900,2410,0,0,2410,26000,28410,null,2410,26000,{"$nulls":7},28410,null,"GAIL GODENZI","8086823113","GAIL.GODENZI@ISLANDENERGYSERVICES.COM"]
["96707CHVRN91480",{"$f":"HYPERLINK(_xlfn.CONCAT(\"https://enviro.epa.gov/facts/tri/ef-facilities/#/Facility/\",A35),\"TRI Facility Report\")","v":"TRI Facility Report"},"110000486304","IES DOWNSTREAM LLC - KAPOLEI TERMINAL","91-480 MALAKOLE ST","KAPOLEI","HONOLULU","HI","96707","None","Merchant Wholesalers, Nondurable Goods ","Petroleum Bulk Stations and Terminals ","424710","Petroleum Bulk Stations and Terminals","IES DOWNSTREAM LLC","1321220501290","Ethylbenzene","0000100414",120,300,420,0,0,420,3000,3420,null,420,3000,{"$nulls":7},3420,null,"GAIL GODENZI","8086823113","GAIL.GODENZI@ISLANDENERGYSERVICES.COM"]
["96707CHVRN91480",{"$f":"HYPERLINK(_xlfn.CONCAT(\"https://enviro.epa.gov/facts/tri/ef-facilities/#/Facility/\",A36),\"TRI Facility Report\")","v":"TRI Facility Report"},"110000486304","IES DOWNSTREAM LLC - KAPOLEI TERMINAL","91-480 MALAKOLE ST","KAPOLEI","HONOLULU","HI","96707","None","Merchant Wholesalers, Nondurable Goods ","Petroleum Bulk Stations and Terminals ","424710","Petroleum Bulk Stations and Terminals","IES DOWNSTREAM LLC","1321220501302","n-Hexane","0000110543",40,2300,2340,0,0,2340,0,2340,null,2340,{"$nulls":8},2340,null,"GAIL GODENZI","8086823113","GAIL.GODENZI@ISLANDENERGYSERVICES.COM"]
["96707CHVRN91480",{"$f":"HYPERLINK(_xlfn.CONCAT(\"https://enviro.epa.gov/facts/tri/ef-facilities/#/Facility/\",A37),\"TRI Facility Report\")","v":"TRI Facility Report"},"110000486304","IES DOWNSTREAM LLC - KAPOLEI TERMINAL","91-480 MALAKOLE ST","KAPOLEI","HONOLULU","HI","96707","None","Merchant Wholesalers, Nondurable Goods ","Petroleum Bulk Stations and Terminals ","424710","Petroleum Bulk Stations and Terminals","IES DOWNSTREAM LLC","1321220501314","1,2,4-Trimethylbenzene","0000095636",140,12,152,0,0,152,0,152,null,152,{"$nulls":8},152,null,"GAIL GODENZI","8086823113","GAIL.GODENZI@ISLANDENERGYSERVICES.COM"]
["96707CHVRN91480",{"$f":"HYPERLINK(_xlfn.CONCAT(\"https://enviro.epa.gov/facts/tri/ef-facilities/#/Facility/\",A38),\"TRI Facility Report\")","v":"TRI Facility Report"},"110000486304","IES DOWNSTREAM LLC - KAPOLEI TERMINAL","91-480 MALAKOLE ST","KAPOLEI","HONOLULU","HI","96707","None","Merchant Wholesalers, Nondurable Goods ","Petroleum Bulk Stations and Terminals ","424710","Petroleum Bulk Stations and Terminals","IES DOWNSTREAM LLC","1321220501326","Naphthalene","0000091203",110,20,130,0,0,130,570,700,null,130,570,{"$nulls":7},700,null,"GAIL GODENZI","8086823113","GAIL.GODENZI@ISLANDENERGYSERVICES.COM"]
["96707CHVRN91480",{"$f":"HYPERLINK(_xlfn.CONCAT(\"https://enviro.epa.gov/facts/tri/ef-facilities/#/Facility/\",A39),\"TRI Facility Report\")","v":"TRI Facility Report"},"110000486304","IES DOWNSTREAM LLC - KAPOLEI TERMINAL","91-480 MALAKOLE ST","KAPOLEI","HONOLULU","HI","96707","None","Merchant Wholesalers, Nondurable Goods ","Petroleum Bulk Stations and Terminals ","424710","Petroleum Bulk Stations and Terminals","IES DOWNSTREAM LLC","1321220501338","Polycyclic aromatic compounds","N590",0.03,0.82,0.85,0,0,0.85,0,0.85,null,0.85,{"$nulls":8},0.85,null,"GAIL GODENZI","8086823113","GAIL.GODENZI@ISLANDENERGYSERVICES.COM"]
["96707CHVRN91480",{"$f":"HYPERLINK(_xlfn.CONCAT(\"https://enviro.epa.gov/facts/tri/ef-facilities/#/Facility/\",A40),\"TRI Facility Report\")","v":"TRI Facility Report"},"110000486304","IES DOWNSTREAM LLC - KAPOLEI TERMINAL","91-480 MALAKOLE ST","KAPOLEI","HONOLULU","HI","96707","None","Merchant Wholesalers, Nondurable Goods ","Petroleum Bulk Stations and Terminals ","424710","Petroleum Bulk Stations and Terminals","IES DOWNSTREAM LLC","1321220501340","Benzo[g,h,i]perylene","0000191242",0,0.01,0.01,0,0,0.01,0,0.01,null,0.01,{"$nulls":8},0.01,null,"GAIL GODENZI","8086823113","GAIL.GODENZI@ISLANDENERGYSERVICES.COM"]
["96707CHVRN91480",{"$f":"HYPERLINK(_xlfn.CONCAT(\"https://enviro.epa.gov/facts/tri/ef-facilities/#/Facility/\",A41),\"TRI Facility Report\")","v":"TRI Facility Report"},"110000486304","IES DOWNSTREAM LLC - KAPOLEI TERMINAL","91-480 MALAKOLE ST","KAPOLEI","HONOLULU","HI","96707","None","Merchant Wholesalers, Nondurable Goods ","Petroleum Bulk Stations and Terminals ","424710","Petroleum Bulk Stations and Terminals","IES DOWNSTREAM LLC","1321220501353","Lead compounds","N420",0.5,0,0.5,0,0,0.5,67.3,67.8,null,0.5,67.3,{"$nulls":7},67.8,null,"GAIL GODENZI","8086823113","GAIL.GODENZI@ISLANDENERGYSERVICES.COM"]
["96707CHVRN91480",{"$f":"HYPERLINK(_xlfn.CONCAT(\"https://enviro.epa.gov/facts/tri/ef-facilities/#/Facility/\",A42),\"TRI Facility Report\")","v":"TRI Facility Report"},"110000486304","IES DOWNSTREAM LLC - KAPOLEI TERMINAL","91-480 MALAKOLE ST","KAPOLEI","HONOLULU","HI","96707","None","Merchant Wholesalers, Nondurable Goods ","Petroleum Bulk Stations and Terminals ","424710","Petroleum Bulk Stations and Terminals","IES DOWNSTREAM LLC","1321220501365","Cyclohexane","0000110827",15,0,15,0,0,15,0,15,null,15,{"$nulls":8},15,null,"GAIL GODENZI","8086823113","GAIL.GODENZI@ISLANDENERGYSERVICES.COM"]

{"sheet":"RCRA detail","index":3,"n_rows":16,"n_cols":16,"rows_kept":16}
["RCRA ID","FRS ID","Facility Name","Street Address","City","County","State","NEA Sectors (NEA designation is from the Target Facilities List)","Primary NAICS Code","Primary NAICS Description","Last Shipment date (as of July 1, 2022)","Waste Shipped (tons, July 1, 2021 - July 1, 2022)","Count of Manifests shipped (July 1, 2021 - July 1, 2022)","Contact Name","Contact Phone","Contact Email"]
["HI6170024339","110046184516","PEARL HARBOR NAVAL SHIPYARD AND INTERMEDIATE MAINTENANCE FACILITY","667 SAFEGUARD STREET, SUITE 100","JBPHH","HONOLULU","HI","None","92811","National Security","2022-06-24T01:00:00",116.28956235,544,"Jade Katsuda","808-473-8000","JADE.KATSUDA@NAVY.MIL"]
["HID006927123","110070067656","PACIFIC SHIPYARDS INTERNATIONAL, LLC","PIER 24/25 HONOLULU HARBOR","HONOLULU","HONOLULU","HI","None","336611","Ship Building and Repairing","2022-06-09",11.0985,27,"Greg Ball","808-366-1191","RGUERRERO@PACIFICSHIPYARDS.COM"]
["HID055777023","110070870564","COCA-COLA USA","91-233 KALAELOA BLVD","KAPOLEI","HONOLULU","HI","Food & Beverage","31193","Flavoring Syrup and Concentrate Manufacturing","2022-03-24",0.744549986,12,null,"253-872-8030","ARICHARDSON@COCA-COLA.COM"]
["HID056786395","110000486322","PAR HAWAII REFINING, LLC","91-325 KOMOHANA ST","KAPOLEI","HONOLULU","HI","None","32411","Petroleum Refineries","2022-05-25T01:00:00",330.3365,41,"David Fayol","808-547-3945","dfayol@parpacific.com"]
["HID984467712","110050297676","MARISCO LTD","91-607 MALAKOLE RD","KAPOLEI","HONOLULU","HI","None","336611","Ship Building and Repairing","2022-03-02",9.2685,6,"J. R. Goodwin","808-682-1333","SHINTON@MARISCO.NET"]
["HID984469957","110005728926","TESLA SERVICE HONOLULU","746 AUAHI ST","HONOLULU","HONOLULU","HI","Automotive","811111","General Automotive Repair","2022-04-13T12:00:00",1.85,10,null,"808-425-2678","JTAKETA@TESLA.COM"]
["HIR000074492","110009360360","KAHULUI TRUCKING AND STORAGE","140 HOBRON AVE","KAHULUI","MAUI","HI","Automotive","811111","General Automotive Repair","2022-03-14",0.265,3,null,"253-627-7568","SOKEEFE@ABHI.COM"]
["HIR000135582","110017621019","HAWAII MARINE CLEANING LLC","96 1382 WAIHONA ST","PEARL CITY","HONOLULU","HI","None","336611","Ship Building and Repairing","2022-03-30T01:00:00",0.8,1,"Zheng Lan","808-455-8226","zheng.lan@pcshi.com"]
["HIR000138370","110000486260","PEPSI BOTTLING GROUP LLC","99-1325  HALAWA VALLEY ST","AIEA","HONOLULU","HI","Food & Beverage","312111","Soft Drink Manufacturing","2021-11-15",0.7875,5,null,"253-627-7568","DAVID.COX@PEPSICO.COM"]
["HIR000141358","110046526559","TRANE PACIFIC SERVICES","2969 MAPUNAPUNA PL STE 101","HONOLULU","HONOLULU","HI","None","334512","Automatic Environmental Control Manufacturing for Residential, Commercial, and Appliance Use","2022-05-06",0.875,5,null,"253-627-7568","JDELACRUZ@TRANE.COM"]
["HIR000141630","110055927804","TRU TAG TECHNOLOGIES, INC.","2045 LAUWILIWILI ST., UNITS 301-305","KAPOLEI","HONOLULU","HI","Chemicals","32518","Other Basic Inorganic Chemical Manufacturing","2022-06-22",7.975,17,"Tam Kim","808-878-8247","CLEIDHOLM@TRUTAGS.COM"]
["HIR000144551","110070119916","COSMOS JEWELRY LTD.","1320 KALANI STREET #214","HONOLULU","HONOLULU","HI","None","33991","Jewelry and Silverware Manufacturing","2022-05-23",0.08,3,null,"253-627-7568","DENNY@DENNYWONG.COM"]
["HIR000145482","110070462047","PAR HAWAII REFINING - PAR WEST","91-480 MALAKOLE ST. BLDG CCB","KAPOLEI","HONOLULU","HI","None","324110","Petroleum Refineries","2021-10-27",39.3975,20,"Richard Creamer","808-547-3841","RCREAMER@PARPACIFIC.COM"]
["HIR000145888","110070132031","HC&D KAPAA QUARRY","26 KAPAA QUARRY PLACE","KAILUA","HONOLULU","HI","None","32732","Ready-Mix Concrete Manufacturing","2021-12-01",0.005,1,"Zheng Lan","808-266-2686","zheng.lan@pcshi.com"]
["HIT160010005","110000486304","IES DOWNSTREAM, LLC - KAPOLEI BULK STORAGE TERMINAL","91-480 MALAKOLE ST.","KAPOLEI","HONOLULU","HI","None","424710","Petroleum Bulk Stations and Terminals","2022-06-23",85.203,11,"Gail Godenzi","808-682-2287","GAIL.GODENZI@ISLANDENERGYSERVICES.COM"]

{"sheet":"GHGRP detail","index":4,"n_rows":28,"n_cols":66,"rows_kept":28}
["GHGRP ID","FRS ID","Facility Name","Street Address","City","County","State","Zip Code","NEA Sectors (NEA designation is from the Target Facilities List)","Primary NAICS Code","Primary NAICS Description","Industry Type (subparts)","Industry Type (sectors)","Total Reported Direct Emissions (MTCO2e, 2021)","CO2 Emissions (non-biogenic) (MTCO2e, 2021)","Methane (CH4) Emissions (MTCO2e, 2021)","Nitrous Oxide (N2O) Emissions (MTCO2e, 2021)","HFC Emissions (MTCO2e, 2021)","PFC Emissions (MTCO2e, 2021)","SF6 Emissions (MTCO2e, 2021)","NF3 Emissions (MTCO2e, 2021)","Other Fully Fluorinated GHG Emissions (MTCO2e, 2021)","HFE Emissions (MTCO2e, 2021)","Very Short-lived Compounds Emissions (MTCO2e, 2021)","Other GHGs (MTCO2e, 2021)","Biogenic CO2 emissions (MTCO2e, 2021)","Stationary Combustion (MTCO2e, 2021)","Electricity Generation (MTCO2e, 2021)","Adipic Acid Production (MTCO2e, 2021)","Aluminum Production (MTCO2e, 2021)","Ammonia Manufacturing (MTCO2e, 2021)","Cement Production (MTCO2e, 2021)","Electronics Manufacture (MTCO2e, 2021)","Ferroalloy Production (MTCO2e, 2021)","Fluorinated GHG Production (MTCO2e, 2021)","Glass Production (MTCO2e, 2021)","HCFC–22 Production from HFC–23 Destruction (MTCO2e, 2021)","Hydrogen Production (MTCO2e, 2021)","Iron and Steel Production (MTCO2e, 2021)","Lead Production (MTCO2e, 2021)","Lime Production (MTCO2e, 2021)","Magnesium Production (MTCO2e, 2021)","Miscellaneous Use of Carbonates (MTCO2e, 2021)","Nitric Acid Production (MTCO2e, 2021)","Petroleum and Natural Gas Systems – Offshore Production (MTCO2e, 2021)","Petroleum and Natural Gas Systems – Processing (MTCO2e, 2021)","Petroleum and Natural Gas Systems – Transmission/Compression (MTCO2e, 2021)","Petroleum and Natural Gas Systems – Underground Storage (MTCO2e, 2021)","Petroleum and Natural Gas Systems – LNG Storage (MTCO2e, 2021)","Petroleum and Natural Gas Systems – LNG Import/Export (MTCO2e, 2021)","Petrochemical Production (MTCO2e, 2021)","Petroleum Refining (MTCO2e, 2021)","Phosphoric Acid Production (MTCO2e, 2021)","Pulp and Paper Manufacturing (MTCO2e, 2021)","Silicon Carbide Production (MTCO2e, 2021)","Soda Ash Manufacturing (MTCO2e, 2021)","Titanium Dioxide Production (MTCO2e, 2021)","Underground Coal Mines (MTCO2e, 2021)","Zinc Production (MTCO2e, 2021)","Municipal Landfills (MTCO2e, 2021)","Industrial Wastewater Treatment (MTCO2e, 2021)","Manufacture of Electric Transmission and Distribution Equipment (MTCO2e, 2021)","Industrial Waste Landfills (MTCO2e, 2021)","Is some CO2 collected on-site and used to manufacture other products and therefore not emitted from the affected manufacturing process unit(s)? (as reported under Subpart G or S)","Is some CO2 reported as emissions from the affected manufacturing process unit(s) under Subpart AA, G or P collected and transferred off-site or injected (as reported under Subpart PP)?","Does the facility employ continuous emissions monitoring? "]
[1005972,"110027164164","AES HAWAII INC","91-086 KAOMI LP","KAPOLEI","HONOLULU COUNTY","HI","96707","None","221112","Fossil Fuel Electric Power Generation","C","Power Plants",1068811.398,1059350.9,3455.5,6004.998,{"$nulls":9},1068811.398,{"$nulls":36},"N","N","N"]
[1004873,"110071160437","Asphalt Hawaii Kalaeloa Asphalt Terminal","91-550 Malakole Street","Kapolei","HONOLULU COUNTY","HI","96707","None","424710","Petroleum Bulk Stations and Terminals","C,MM-IMP","Petroleum Product Suppliers,Petroleum and Natural Gas Systems",838.48,834,1.5,2.98,{"$nulls":8},1853.1,838.48,{"$nulls":36},"N","N","N"]
[1005313,"110043806012","CENTRAL MAUI LANDFILL REFUSE & RECYCLING CENTER","1 PULEHU ROAD","PUUNENE","MAUI COUNTY","HI","96784","None","562212","Solid Waste Landfill","HH","Waste",61762.75,null,61762.75,{"$nulls":43},61762.75,{"$nulls":3},"N","N","N"]
[1007708,"110014055501","CITY & COUNTY OF HONOLULU - WAIMANALO GULCH MSWLF","92-460 FARRINGTON HIGHWAY","KAPOLEI","HONOLULU COUNTY","HI","96707","None","562212","Solid Waste Landfill","HH","Waste",47607.5,null,47607.5,{"$nulls":43},47607.5,{"$nulls":3},"N","N","N"]
[1007914,"110071046304","COVANTA HONOLULU RESOURCE RECOVERY VENTURE (H-POWER)","91-174 HANUA ST","KAPOLEI","HONOLULU COUNTY","HI","96707","None","562213","Solid Waste Combustors and Incinerators","C","Waste",296714.306,284469.6,4773.25,7471.456,{"$nulls":8},415364.9,296714.306,{"$nulls":36},"N","N","N"]
[1001802,"110008062265","HAMAKUA ENERGY PARTNERS","45-300 LEHUA STREET","HONOKAA","HAWAII COUNTY","HI","96727","None","221112","Fossil Fuel Electric Power Generation","C","Power Plants",103964.816,103549.9,126.75,288.166,{"$nulls":8},32344,103964.816,{"$nulls":36},"N","N","N"]
[1001552,"110000486377","HAWAII ELECTRIC LIGHT CO (HELCO) - KANOELEHUA HILL GENERATING STATION","54 HALEKAUILA STREET","HILO","HAWAII COUNTY","HI","96720","None","221112","Fossil Fuel Electric Power Generation","C","Power Plants",151049.496,150540.8,150.5,358.196,{"$nulls":9},151049.496,{"$nulls":36},"N","N","N"]
[1001557,"110071161871","HAWAII ELECTRIC LIGHT CO (HELCO) - KEAHOLE GENERATING STATION","73-4249 PUKIAWE ST.","KAILUA KONA","HAWAII COUNTY","HI","96740","None","221112","Fossil Fuel Electric Power Generation","C","Power Plants",208108.734,207396.7,210.5,501.534,{"$nulls":9},208108.734,{"$nulls":36},"N","N","N"]
[1001555,"110071161607","HAWAII ELECTRIC LIGHT CO (HELCO) - PUNA GENERATING STATION",null,"KEAAU","HAWAII COUNTY","HI","96749","None","221112","Fossil Fuel Electric Power Generation","C","Power Plants",85018.034,84729,85.5,203.534,{"$nulls":9},85018.034,{"$nulls":36},"N","N","N"]
[1007845,"110000486420","HAWAIIAN ELECTRIC COMPANY (HECO) - WAIAU GENERATING STATION","475 KAMEHAMEHA HIGHWAY","PEARL CITY","HONOLULU COUNTY","HI","96782","None","221112","Fossil Fuel Electric Power Generation","C","Power Plants",751162.206,748593.5,759.25,1809.456,{"$nulls":9},751162.206,{"$nulls":36},"N","N","N"]
[1006105,"110045950315","HAWAIIAN ELECTRIC COMPANY (HECO) CAMPBELL INDUSTRIAL PARK GENERATING STATION","91-196 HANUA ST","KAPOLEI","HONOLULU COUNTY","HI","96707","None","221112","Fossil Fuel Electric Power Generation","C","Power Plants",121884.23,121467.7,123,293.53,{"$nulls":9},121884.23,{"$nulls":36},"N","N","N"]
[1007740,"110000486439","HAWAIIAN ELECTRIC COMPANY (HECO) KAHE GENERATING STATION","92-200 Farrington Highway","Kapolei","HONOLULU COUNTY","HI","96707","None","221112","Fossil Fuel Electric Power Generation","C","Power Plants",1724432.362,1718576.6,1730.25,4125.512,{"$nulls":9},1724432.362,{"$nulls":36},"N","N","N"]
[1005886,"110027161568","HAWAIIAN ELECTRIC COMPANY (HECO)-HONOLULU GENERATING STATION","170 ALA MOANA BLVD","HONOLULU","HONOLULU COUNTY","HI","96813","None","221112","Fossil Fuel Electric Power Generation","C","Power Plants",0,0,{"$nulls":11},0,{"$nulls":36},"N","N","N"]
[1005265,"110001093165","Hawaiian Commercial and Sugar Company","1 HANSEN ROAD","PUUNENE","MAUI COUNTY","HI","96784","None","531120","Lessors of Nonresidential Buildings (except Miniwarehouses)","TT","Waste",44245.25,null,44245.25,{"$nulls":46},44245.25,"N","N","N"]
[1006670,"110070132024","KALAELOA COGENERATION PLANT","91-111 KALAELOA BOULEVARD","KAPOLEI","HONOLULU COUNTY","HI","96707","None","221112","Fossil Fuel Electric Power Generation","C","Power Plants",844208.348,841363.5,840.5,2004.348,{"$nulls":9},844208.348,{"$nulls":36},"N","N","N"]
[1001765,"110015679050","KAUAI ISLAND UTILITY COOPERATIVE - KAPAIA POWER STATION","4941-K MAALO RD","LIHUE","KAUAI COUNTY","HI","96766","None","221112","Fossil Fuel Electric Power Generation","C","Power Plants",91920.636,91579.4,100.75,240.486,{"$nulls":9},91920.636,{"$nulls":36},"N","N","N"]
[1001768,"110064110652","KAUAI ISLAND UTILITY COOPERATIVE, PORT ALLEN GENERATING STATION","261-A AKAULA RD","ELEELE","KAUAI COUNTY","HI","96705","None","221112","Fossil Fuel Electric Power Generation","C","Power Plants",27264.008,27170.9,27.25,65.858,{"$nulls":9},27264.008,{"$nulls":36},"N","N","N"]
[1001595,"110071161216","Kapaa and Kalaheo Sanitary Landfills","913 Kalanianaole Hwy","Kailua","HONOLULU COUNTY","HI","96734","None","562212","Solid Waste Landfill","HH","Waste",1471.25,null,1471.25,{"$nulls":43},1471.25,{"$nulls":3},"N","N","N"]
[1000216,"110071161347","Kekaha Landfill","6900D Kaumualii Highway","Kekaha","KAUAI COUNTY","HI","96752","None","562212","Solid Waste Landfill","HH","Waste",24416.5,null,24416.5,{"$nulls":43},24416.5,{"$nulls":3},"N","N","N"]
[1001437,"110000486395","MAUI ELECTRIC CO (MECO) - KAHULUI GENERATING STATION","200 HOBRON LANE","KAHULUI","MAUI COUNTY","HI","96732","None","221112","Fossil Fuel Electric Power Generation","C","Power Plants",152544.67,152030.6,152,362.07,{"$nulls":9},152544.67,{"$nulls":36},"N","N","N"]
[1001438,"110010385528","MAUI ELECTRIC CO (MECO) - MAALAEA GENERATING STATION","1000 NORTH KIHEI ROAD","KIHEI","MAUI COUNTY","HI","96753","None","221112","Fossil Fuel Electric Power Generation","C","Power Plants",433678.636,432195.3,438.25,1045.086,{"$nulls":8},731.4,433678.636,{"$nulls":36},"N","N","N"]
[1007188,"110008062283","MAUI ELECTRIC CO (MECO) - PALAAU GENERATING STATION","32A ULILI STREET","KAUNAKAKAI","MAUI COUNTY","HI","96748","None","221112","Fossil Fuel Electric Power Generation","C","Power Plants",23807.116,23725.9,24,57.216,{"$nulls":9},23807.116,{"$nulls":36},"N","N","N"]
[1004803,"110043812078","Palailai Landfill","91-402 Farrington Highway","Kapolei","HONOLULU COUNTY","HI","96707","None","562212","Solid Waste Landfill","C,HH","Waste",29416.55,10.8,29405.75,{"$nulls":10},10.8,{"$nulls":32},29405.75,{"$nulls":3},"N","N","N"]
[1013281,"110000486304","Par West Refinery","91-480 Malakole Street, Bldg. CCB","Kapolei","HONOLULU COUNTY","HI","96707","None","324110","Petroleum Refineries","C,P,Y","Chemicals,Refineries",2157.56,2145.6,6,5.96,{"$nulls":9},2102.712,{"$nulls":10},0,{"$nulls":13},54.848,{"$nulls":11},"N","N","N"]
[1006932,"110071162280","REFINERY KAPOLEI","91-325 KOMOHANA STREET","KAPOLEI","HONOLULU COUNTY","HI","96707","None","324110","Petroleum Refineries","C,P,Y","Chemicals,Refineries",602605.1,600233.4,948.75,1422.95,{"$nulls":9},506050.88,{"$nulls":10},92553.9,{"$nulls":13},4000.32,{"$nulls":11},"N","N","N"]
[1005159,"110000516399","SNG Plant","91-390 Kauhi Street","Kapolei","HONOLULU COUNTY","HI","96707","None","221210","Natural Gas Distribution","C,PP","Other,Suppliers of CO2",24082.44,24034.4,16.75,31.29,{"$nulls":9},24082.44,{"$nulls":36},"N","N","N"]
[1006173,"110034132542","WEST HAWAII LANDFILL / PUU ANAHULU","71-111 QUEEN KAAHUMANU HWY","WAIKOLOA","HAWAII COUNTY","HI","96738","None","562212","Solid Waste Landfill","HH","Waste",8672.25,null,8672.25,{"$nulls":43},8672.25,{"$nulls":3},"N","N","N"]

{"sheet":"NEI detail","index":5,"n_rows":109,"n_cols":20,"rows_kept":109}
["EIS Facility ID","FRS ID","Facility Name","Street Address","City","County","State","Zip Code","NEA Sectors (NEA designation is from the Target Facilities List)","Primary NAICS Code","Primary NAICS Description","Source Classification Code (SCC)","SCC Description","CO Emissions (tons, 2017)","NH3 Emissions (tons, 2017)","NOX Emissions (tons, 2017)","PM10-PRI Emissions (tons, 2017)","SO2 Emissions (tons, 2017)","VOC Emissions (tons, 2017)","Total HAP Emissions (tons, 2017)"]
["947811","110000486304","IES Terminal (IES Downstream, LLC)","91-480 Malakole St.","Kapolei",null,"HI","96707","None","324110","Petroleum Refineries","20200701","Internal Combustion Engines Industrial Process Gas Turbine",3.462528,0.09239868379999999,66.205039,2.82848,0.5671077919999999,0.763254045,0]
["947811","110000486304","IES Terminal (IES Downstream, LLC)","91-480 Malakole St.","Kapolei",null,"HI","96707","None","324110","Petroleum Refineries","40301010","Chemical Evaporation Petroleum Product Storage at Refineries Fixed Roof Tanks (Varying Sizes) Crude Oil RVP 5: Breathing Loss: 67000 Bbl. Size",{"$nulls":5},0.00857]
["947811","110000486304","IES Terminal (IES Downstream, LLC)","91-480 Malakole St.","Kapolei",null,"HI","96707","None","324110","Petroleum Refineries","30688801","Industrial Processes Petroleum Industry Fugitive Emissions Other Not Elsewhere Classified",{"$nulls":5},1275.5466,60.46640060000001]
["947811","110000486304","IES Terminal (IES Downstream, LLC)","91-480 Malakole St.","Kapolei",null,"HI","96707","None","324110","Petroleum Refineries","20200102","Internal Combustion Engines Industrial Distillate Oil (Diesel) Reciprocating",2.027256,null,7.511992,0.5109739999999999,0.003056,2.531784,0.014004512838148174]
["947811","110000486304","IES Terminal (IES Downstream, LLC)","91-480 Malakole St.","Kapolei",null,"HI","96707","None","324110","Petroleum Refineries","40301021","Chemical Evaporation Petroleum Product Storage at Refineries Fixed Roof Tanks (Varying Sizes) Distillate Fuel #2: Working Loss",{"$nulls":5},0.9482410000000001]
["947811","110000486304","IES Terminal (IES Downstream, LLC)","91-480 Malakole St.","Kapolei",null,"HI","96707","None","324110","Petroleum Refineries","30600508","Industrial Processes Petroleum Industry Wastewater Treatment Oil/Water Separator",null,0,{"$nulls":3},8.25291,7.93291e-06]
["947811","110000486304","IES Terminal (IES Downstream, LLC)","91-480 Malakole St.","Kapolei",null,"HI","96707","None","324110","Petroleum Refineries","30600106","Industrial Processes Petroleum Industry Process Heaters Process Gas",17.187555500000002,0.0658443287,38.6062595,2.382939934,0.7453629999999999,1.7244959969999998,0.0001567724287]
["947811","110000486304","IES Terminal (IES Downstream, LLC)","91-480 Malakole St.","Kapolei",null,"HI","96707","None","324110","Petroleum Refineries","30600701","Industrial Processes Petroleum Industry Cooling Towers All Not Elsewhere Classified",{"$nulls":3},15.0761,null,53.8047]
["947811","110000486304","IES Terminal (IES Downstream, LLC)","91-480 Malakole St.","Kapolei",null,"HI","96707","None","324110","Petroleum Refineries","30600103","Industrial Processes Petroleum Industry Process Heaters Oil",10.961780000000001,1.753884,52.6165,5.0424299999999995,24.9052,0.438471,1.973119e-05]
["947811","110000486304","IES Terminal (IES Downstream, LLC)","91-480 Malakole St.","Kapolei",null,"HI","96707","None","324110","Petroleum Refineries","30600201","Industrial Processes Petroleum Industry Catalytic Cracking Unit Fluid Catalytic Cracking Unit",25.5237,0.648516,53.3659,25.646,34.4684,7.62006,0.000811]
["947811","110000486304","IES Terminal (IES Downstream, LLC)","91-480 Malakole St.","Kapolei",null,"HI","96707","None","324110","Petroleum Refineries","30102310","Industrial Processes Chemical Manufacturing Sulfuric Acid Absorber (97.0% Conversion)",{"$nulls":4},211.738]
["947811","110000486304","IES Terminal (IES Downstream, LLC)","91-480 Malakole St.","Kapolei",null,"HI","96707","None","324110","Petroleum Refineries","30600904","Industrial Processes Petroleum Industry Flares Process Gas",3.43699,0.275991753,27.868464099999997,null,0.020207000000000003,6.130854,3.98412e-06]
["947811","110000486304","IES Terminal (IES Downstream, LLC)","91-480 Malakole St.","Kapolei",null,"HI","96707","None","324110","Petroleum Refineries","30600107","Industrial Processes Petroleum Industry Process Heaters Liquified Petroleum Gas (LPG)",0,null,0,0,0,0]
["947811","110000486304","IES Terminal (IES Downstream, LLC)","91-480 Malakole St.","Kapolei",null,"HI","96707","None","324110","Petroleum Refineries","40301141","Chemical Evaporation Petroleum Product Storage at Refineries Floating Roof Tanks (Varying Sizes) Gasoline: Breathing Loss: External: Secondary Seal",{"$nulls":5},272.440091]
["947811","110000486304","IES Terminal (IES Downstream, LLC)","91-480 Malakole St.","Kapolei",null,"HI","96707","None","324110","Petroleum Refineries","40301143","Chemical Evaporation Petroleum Product Storage at Refineries Floating Roof Tanks (Varying Sizes) Jet Naphtha (JP-4): Breathing Loss: External: Secondary Seal",{"$nulls":5},6.679276]
["947811","110000486304","IES Terminal (IES Downstream, LLC)","91-480 Malakole St.","Kapolei",null,"HI","96707","None","324110","Petroleum Refineries","30600505","Industrial Processes Petroleum Industry Wastewater Treatment Wastewater Treatment without Separator",7.36476,9.56721,10.4975,0.566828,3.21019,6.75085]
["947811","110000486304","IES Terminal (IES Downstream, LLC)","91-480 Malakole St.","Kapolei",null,"HI","96707","None","324110","Petroleum Refineries","40400326","Chemical Evaporation Petroleum Liquids Storage (non-Refinery) Oil and Gas Field Storage and Working Tanks External Floating Roof Tank, Diesel, working+breathing+flashing",{"$nulls":5},0.25176]
["947811","110000486304","IES Terminal (IES Downstream, LLC)","91-480 Malakole St.","Kapolei",null,"HI","96707","None","324110","Petroleum Refineries","40301131","Chemical Evaporation Petroleum Product Storage at Refineries Floating Roof Tanks (Varying Sizes) Gasoline: Breathing Loss: External: Primary Seal",{"$nulls":5},1.898797,4e-06]
["947811","110000486304","IES Terminal (IES Downstream, LLC)","91-480 Malakole St.","Kapolei",null,"HI","96707","None","324110","Petroleum Refineries","40301118","Chemical Evaporation Petroleum Product Storage at Refineries Floating Roof Tanks (Varying Sizes) Jet Naphtha (JP-4): Working Loss",{"$nulls":5},0.21901900000000002]
["947811","110000486304","IES Terminal (IES Downstream, LLC)","91-480 Malakole St.","Kapolei",null,"HI","96707","None","324110","Petroleum Refineries","30600202","Industrial Processes Petroleum Industry Catalytic Cracking Unit Catalyst Handling System",{"$nulls":3},0.127831,null,null,7e-06]
["947811","110000486304","IES Terminal (IES Downstream, LLC)","91-480 Malakole St.","Kapolei",null,"HI","96707","None","324110","Petroleum Refineries","40301019","Chemical Evaporation Petroleum Product Storage at Refineries Fixed Roof Tanks (Varying Sizes) Distillate Fuel #2: Breathing Loss: 67000 Bbl. Size",{"$nulls":5},1.0149460000000001]
["947811","110000486304","IES Terminal (IES Downstream, LLC)","91-480 Malakole St.","Kapolei",null,"HI","96707","None","324110","Petroleum Refineries","30600111","Industrial Processes Petroleum Industry Process Heaters No. 6 Oil",19.84181,3.428054,160.0019,35.00092,242.4131,2.672251,45.22734845499999]
["947811","110000486304","IES Terminal (IES Downstream, LLC)","91-480 Malakole St.","Kapolei",null,"HI","96707","None","324110","Petroleum Refineries","20201701","Internal Combustion Engines Industrial Gasoline Turbine",7.665286999999999,2.66781823,85.863168,4.627499,0.42038067600000006,0.48099027000000005,0.005719132070000001]
["947811","110000486304","IES Terminal (IES Downstream, LLC)","91-480 Malakole St.","Kapolei",null,"HI","96707","None","324110","Petroleum Refineries","40600147","Chemical Evaporation Transportation and Marketing of Petroleum Products Tank Cars and Trucks Gasoline: Submerged Loading: Clean Tanks",{"$nulls":5},0.976119,1.86262e-06]
["947811","110000486304","IES Terminal (IES Downstream, LLC)","91-480 Malakole St.","Kapolei",null,"HI","96707","None","324110","Petroleum Refineries","40301117","Chemical Evaporation Petroleum Product Storage at Refineries Floating Roof Tanks (Varying Sizes) Crude Oil RVP 5: Working Loss",{"$nulls":5},8.678331000000002]
["947811","110000486304","IES Terminal (IES Downstream, LLC)","91-480 Malakole St.","Kapolei",null,"HI","96707","None","324110","Petroleum Refineries","40301107","Chemical Evaporation Petroleum Product Storage at Refineries Floating Roof Tanks (Varying Sizes) Gasoline RVP 13/10/7: Working Loss: 67000 Bbl. Size",{"$nulls":5},0.6886850000000001,2e-06]
["947811","110000486304","IES Terminal (IES Downstream, LLC)","91-480 Malakole St.","Kapolei",null,"HI","96707","None","324110","Petroleum Refineries","40301142","Chemical Evaporation Petroleum Product Storage at Refineries Floating Roof Tanks (Varying Sizes) Crude Oil: Breathing Loss: External: Secondary Seal",{"$nulls":5},69.01555499999999]
["1818411","110000486304","Marine Mooring (IES Downstream, LLC)","91-480 Malakole St","Kapolei",null,"HI","96707","None","324110","Petroleum Refineries","40600236","Chemical Evaporation Transportation and Marketing of Petroleum Products Marine Vessels Gasoline: Loading Tankers: Uncleaned Tanks",{"$nulls":5},9.25888]
["1818511","110000486322","Par Hawaii Refining - Refinery","91-325 Komohana Street","Kapolei",null,"HI","96707","None","324110","Petroleum Refineries","40301097","Chemical Evaporation Petroleum Product Storage at Refineries Fixed Roof Tanks (Varying Sizes) Other Product: Breathing Loss: 67000 Bbl. Size",{"$nulls":5},0.00143,0]
["1818511","110000486322","Par Hawaii Refining - Refinery","91-325 Komohana Street","Kapolei",null,"HI","96707","None","324110","Petroleum Refineries","40301027","Chemical Evaporation Petroleum Product Storage at Refineries Fixed Roof Tanks (Varying Sizes) Grade 4 Fuel Oil: Breathing Loss: 67000 Bbl. Size",{"$nulls":5},0.0583,0]
["1818511","110000486322","Par Hawaii Refining - Refinery","91-325 Komohana Street","Kapolei",null,"HI","96707","None","324110","Petroleum Refineries","40301115","Chemical Evaporation Petroleum Product Storage at Refineries Floating Roof Tanks (Varying Sizes) Distillate Fuel #2: Breathing Loss: 67000 Bbl. Size",{"$nulls":5},0.272,0.036388510000000006]
["1818511","110000486322","Par Hawaii Refining - Refinery","91-325 Komohana Street","Kapolei",null,"HI","96707","None","324110","Petroleum Refineries","40301112","Chemical Evaporation Petroleum Product Storage at Refineries Floating Roof Tanks (Varying Sizes) Jet Naphtha (JP-4): Breathing Loss: 250000 Bbl. Size",{"$nulls":5},1.34,0.18110111999999998]
["1818511","110000486322","Par Hawaii Refining - Refinery","91-325 Komohana Street","Kapolei",null,"HI","96707","None","324110","Petroleum Refineries","40301099","Chemical Evaporation Petroleum Product Storage at Refineries Fixed Roof Tanks (Varying Sizes) Other Product: Working Loss",{"$nulls":5},0.02981,0]
["1818511","110000486322","Par Hawaii Refining - Refinery","91-325 Komohana Street","Kapolei",null,"HI","96707","None","324110","Petroleum Refineries","40301098","Chemical Evaporation Petroleum Product Storage at Refineries Fixed Roof Tanks (Varying Sizes) Other Product: Breathing Loss: 250000 Bbl. Size",{"$nulls":5},0.009619,0]
["1818511","110000486322","Par Hawaii Refining - Refinery","91-325 Komohana Street","Kapolei",null,"HI","96707","None","324110","Petroleum Refineries","40301078","Chemical Evaporation Petroleum Product Storage at Refineries Fixed Roof Tanks (Varying Sizes) Grade 2 Fuel Oil: Working Loss",{"$nulls":5},4.63664,0.02948037]
["1818511","110000486322","Par Hawaii Refining - Refinery","91-325 Komohana Street","Kapolei",null,"HI","96707","None","324110","Petroleum Refineries","40301077","Chemical Evaporation Petroleum Product Storage at Refineries Fixed Roof Tanks (Varying Sizes) Grade 4 Fuel Oil: Working Loss",{"$nulls":5},0.13643,0]
["1818511","110000486322","Par Hawaii Refining - Refinery","91-325 Komohana Street","Kapolei",null,"HI","96707","None","324110","Petroleum Refineries","40301075","Chemical Evaporation Petroleum Product Storage at Refineries Fixed Roof Tanks (Varying Sizes) Grade 6 Fuel Oil: Working Loss",{"$nulls":5},0.9437,0]
["1818511","110000486322","Par Hawaii Refining - Refinery","91-325 Komohana Street","Kapolei",null,"HI","96707","None","324110","Petroleum Refineries","40301068","Chemical Evaporation Petroleum Product Storage at Refineries Fixed Roof Tanks (Varying Sizes) Grade 2 Fuel Oil: Breathing Loss: 250000 Bbl. Size",{"$nulls":5},1.83E-3,0]
["1818511","110000486322","Par Hawaii Refining - Refinery","91-325 Komohana Street","Kapolei",null,"HI","96707","None","324110","Petroleum Refineries","40301067","Chemical Evaporation Petroleum Product Storage at Refineries Fixed Roof Tanks (Varying Sizes) Grade 4 Fuel Oil: Breathing Loss: 250000 Bbl. Size",{"$nulls":5},0.000485,0]
["1818511","110000486322","Par Hawaii Refining - Refinery","91-325 Komohana Street","Kapolei",null,"HI","96707","None","324110","Petroleum Refineries","40301028","Chemical Evaporation Petroleum Product Storage at Refineries Fixed Roof Tanks (Varying Sizes) Grade 2 Fuel Oil: Breathing Loss: 67000 Bbl. Size",{"$nulls":5},0.144,0.02001996]
["1818511","110000486322","Par Hawaii Refining - Refinery","91-325 Komohana Street","Kapolei",null,"HI","96707","None","324110","Petroleum Refineries","40301140","Chemical Evaporation Petroleum Product Storage at Refineries Floating Roof Tanks (Varying Sizes) Other Product: Breathing Loss: External: Secondary Seal",{"$nulls":5},0.6398,0.06257657000000001]
["1818511","110000486322","Par Hawaii Refining - Refinery","91-325 Komohana Street","Kapolei",null,"HI","96707","None","324110","Petroleum Refineries","40301025","Chemical Evaporation Petroleum Product Storage at Refineries Fixed Roof Tanks (Varying Sizes) Grade 6 Fuel Oil: Breathing Loss: 67000 Bbl. Size",{"$nulls":5},0.04248,0]
["1818511","110000486322","Par Hawaii Refining - Refinery","91-325 Komohana Street","Kapolei",null,"HI","96707","None","324110","Petroleum Refineries","40301024","Chemical Evaporation Petroleum Product Storage at Refineries Fixed Roof Tanks (Varying Sizes) Asphalt Oil: Breathing Loss: 250000 Bbl. Size",{"$nulls":5},0,0]
["1818511","110000486322","Par Hawaii Refining - Refinery","91-325 Komohana Street","Kapolei",null,"HI","96707","None","324110","Petroleum Refineries","40301023","Chemical Evaporation Petroleum Product Storage at Refineries Fixed Roof Tanks (Varying Sizes) Asphalt Oil: Working Loss",{"$nulls":5},0,0]
["1818511","110000486322","Par Hawaii Refining - Refinery","91-325 Komohana Street","Kapolei",null,"HI","96707","None","324110","Petroleum Refineries","40301021","Chemical Evaporation Petroleum Product Storage at Refineries Fixed Roof Tanks (Varying Sizes) Distillate Fuel #2: Working Loss",{"$nulls":5},2.764655,0.3757054100000001]
["1818511","110000486322","Par Hawaii Refining - Refinery","91-325 Komohana Street","Kapolei",null,"HI","96707","None","324110","Petroleum Refineries","40301020","Chemical Evaporation Petroleum Product Storage at Refineries Fixed Roof Tanks (Varying Sizes) Distillate Fuel #2: Breathing Loss: 250000 Bbl. Size",{"$nulls":5},0.013900000000000001,1.9080899999999999E-3]
["1818511","110000486322","Par Hawaii Refining - Refinery","91-325 Komohana Street","Kapolei",null,"HI","96707","None","324110","Petroleum Refineries","40301065","Chemical Evaporation Petroleum Product Storage at Refineries Fixed Roof Tanks (Varying Sizes) Grade 6 Fuel Oil: Breathing Loss: 250000 Bbl. Size",{"$nulls":5},0.376,0]
["1818511","110000486322","Par Hawaii Refining - Refinery","91-325 Komohana Street","Kapolei",null,"HI","96707","None","324110","Petroleum Refineries","40301143","Chemical Evaporation Petroleum Product Storage at Refineries Floating Roof Tanks (Varying Sizes) Jet Naphtha (JP-4): Breathing Loss: External: Secondary Seal",{"$nulls":5},10.85,1.06458604]
["1818511","110000486322","Par Hawaii Refining - Refinery","91-325 Komohana Street","Kapolei",null,"HI","96707","None","324110","Petroleum Refineries","40301197","Chemical Evaporation Petroleum Product Storage at Refineries Floating Roof Tanks (Varying Sizes) Other Product: Working Loss",{"$nulls":5},1.0932,0.12002727000000002]
["1818511","110000486322","Par Hawaii Refining - Refinery","91-325 Komohana Street","Kapolei",null,"HI","96707","None","324110","Petroleum Refineries","40600129","Chemical Evaporation Transportation and Marketing of Petroleum Products Tank Cars and Trucks Asphalt: Splash Loading",{"$nulls":5},0.174]
["1818511","110000486322","Par Hawaii Refining - Refinery","91-325 Komohana Street","Kapolei",null,"HI","96707","None","324110","Petroleum Refineries","40301180","Chemical Evaporation Petroleum Product Storage at Refineries Floating Roof Tanks (Varying Sizes) Gasoline RVP 13: Working Loss",{"$nulls":5},2.3884000000000003,0.19820016999999998]
["1818511","110000486322","Par Hawaii Refining - Refinery","91-325 Komohana Street","Kapolei",null,"HI","96707","None","324110","Petroleum Refineries","40301178","Chemical Evaporation Petroleum Product Storage at Refineries Floating Roof Tanks (Varying Sizes) Grade 2 Fuel Oil: Working Loss",{"$nulls":5},0.0467,0]
["1818511","110000486322","Par Hawaii Refining - Refinery","91-325 Komohana Street","Kapolei",null,"HI","96707","None","324110","Petroleum Refineries","40301175","Chemical Evaporation Petroleum Product Storage at Refineries Floating Roof Tanks (Varying Sizes) Grade 6 Fuel Oil: Working Loss",{"$nulls":5},0.0471,0]
["1818511","110000486322","Par Hawaii Refining - Refinery","91-325 Komohana Street","Kapolei",null,"HI","96707","None","324110","Petroleum Refineries","40301154","Chemical Evaporation Petroleum Product Storage at Refineries Floating Roof Tanks (Varying Sizes) Jet Kerosene: Breathing Loss: Internal",{"$nulls":5},0.0354,0.01150079]
["1818511","110000486322","Par Hawaii Refining - Refinery","91-325 Komohana Street","Kapolei",null,"HI","96707","None","324110","Petroleum Refineries","40301153","Chemical Evaporation Petroleum Product Storage at Refineries Floating Roof Tanks (Varying Sizes) Jet Naphtha (JP-4): Breathing Loss: Internal",{"$nulls":5},2.54,0.69055662]
["1818511","110000486322","Par Hawaii Refining - Refinery","91-325 Komohana Street","Kapolei",null,"HI","96707","None","324110","Petroleum Refineries","40301151","Chemical Evaporation Petroleum Product Storage at Refineries Floating Roof Tanks (Varying Sizes) Gasoline: Breathing Loss: Internal",{"$nulls":5},12.02,0.7380027799999999]
["1818511","110000486322","Par Hawaii Refining - Refinery","91-325 Komohana Street","Kapolei",null,"HI","96707","None","324110","Petroleum Refineries","40301125","Chemical Evaporation Petroleum Product Storage at Refineries Floating Roof Tanks (Varying Sizes) Grade 6 Fuel Oil: Breathing Loss: 67000 Bbl. Size",{"$nulls":5},0.01044,0]
["1818511","110000486322","Par Hawaii Refining - Refinery","91-325 Komohana Street","Kapolei",null,"HI","96707","None","324110","Petroleum Refineries","40301144","Chemical Evaporation Petroleum Product Storage at Refineries Floating Roof Tanks (Varying Sizes) Jet Kerosene: Breathing Loss: External: Secondary Seal",{"$nulls":5},0.0944,0.01090152]
["1818511","110000486322","Par Hawaii Refining - Refinery","91-325 Komohana Street","Kapolei",null,"HI","96707","None","324110","Petroleum Refineries","40301117","Chemical Evaporation Petroleum Product Storage at Refineries Floating Roof Tanks (Varying Sizes) Crude Oil RVP 5: Working Loss",{"$nulls":5},3.0878,0.10586735]
["1818511","110000486322","Par Hawaii Refining - Refinery","91-325 Komohana Street","Kapolei",null,"HI","96707","None","324110","Petroleum Refineries","40301142","Chemical Evaporation Petroleum Product Storage at Refineries Floating Roof Tanks (Varying Sizes) Crude Oil: Breathing Loss: External: Secondary Seal",{"$nulls":5},15.41,0.5375561300000002]
["1818511","110000486322","Par Hawaii Refining - Refinery","91-325 Komohana Street","Kapolei",null,"HI","96707","None","324110","Petroleum Refineries","40301141","Chemical Evaporation Petroleum Product Storage at Refineries Floating Roof Tanks (Varying Sizes) Gasoline: Breathing Loss: External: Secondary Seal",{"$nulls":5},15.77,1.2916179399999996]
["1818511","110000486322","Par Hawaii Refining - Refinery","91-325 Komohana Street","Kapolei",null,"HI","96707","None","324110","Petroleum Refineries","30600812","Industrial Processes Petroleum Industry Fugitive Emissions Pipeline Valves: Light Liquid/Gas Streams",{"$nulls":5},2.05,0.31000225000000003]
["1818511","110000486322","Par Hawaii Refining - Refinery","91-325 Komohana Street","Kapolei",null,"HI","96707","None","324110","Petroleum Refineries","40301127","Chemical Evaporation Petroleum Product Storage at Refineries Floating Roof Tanks (Varying Sizes) Grade 4 Fuel Oil: Breathing Loss: 67000 Bbl. Size",{"$nulls":5},0.00075,0]
["1818511","110000486322","Par Hawaii Refining - Refinery","91-325 Komohana Street","Kapolei",null,"HI","96707","None","324110","Petroleum Refineries","40301019","Chemical Evaporation Petroleum Product Storage at Refineries Fixed Roof Tanks (Varying Sizes) Distillate Fuel #2: Breathing Loss: 67000 Bbl. Size",{"$nulls":5},0.773,0.10481026]
["1818511","110000486322","Par Hawaii Refining - Refinery","91-325 Komohana Street","Kapolei",null,"HI","96707","None","324110","Petroleum Refineries","40301120","Chemical Evaporation Petroleum Product Storage at Refineries Floating Roof Tanks (Varying Sizes) Distillate Fuel #2: Working Loss",{"$nulls":5},0.83,0.11102812]
["1818511","110000486322","Par Hawaii Refining - Refinery","91-325 Komohana Street","Kapolei",null,"HI","96707","None","324110","Petroleum Refineries","40301119","Chemical Evaporation Petroleum Product Storage at Refineries Floating Roof Tanks (Varying Sizes) Jet Kerosene: Working Loss",{"$nulls":5},0.526,0.05824943999999998]
["1818511","110000486322","Par Hawaii Refining - Refinery","91-325 Komohana Street","Kapolei",null,"HI","96707","None","324110","Petroleum Refineries","40301118","Chemical Evaporation Petroleum Product Storage at Refineries Floating Roof Tanks (Varying Sizes) Jet Naphtha (JP-4): Working Loss",{"$nulls":5},0.8857999999999999,0.11254958999999996]
["1818511","110000486322","Par Hawaii Refining - Refinery","91-325 Komohana Street","Kapolei",null,"HI","96707","None","324110","Petroleum Refineries","40301150","Chemical Evaporation Petroleum Product Storage at Refineries Floating Roof Tanks (Varying Sizes) Other Product: Breathing Loss: Internal",{"$nulls":5},1.624068,0.08251191]
["1818511","110000486322","Par Hawaii Refining - Refinery","91-325 Komohana Street","Kapolei",null,"HI","96707","None","324110","Petroleum Refineries","30600813","Industrial Processes Petroleum Industry Fugitive Emissions Pipeline Valves: Heavy Liquid Streams",{"$nulls":5},25.6,3.024621019999999]
["1818511","110000486322","Par Hawaii Refining - Refinery","91-325 Komohana Street","Kapolei",null,"HI","96707","None","324110","Petroleum Refineries","30609905","Industrial Processes Petroleum Industry Incinerators Liquified Petroleum Gas (LPG)",0.099,3.96E-3,0.172,0.00924,0.000238,0.0132,0.0023436]
["1818511","110000486322","Par Hawaii Refining - Refinery","91-325 Komohana Street","Kapolei",null,"HI","96707","None","324110","Petroleum Refineries","10200502","External Combustion Industrial: Boilers Distillate Oil 10-100 Million BTU/hr",0.277038,0.0443261,1.72527,0.279806,2.38532,0.0155141,8.669071171999998E-3]
["1818511","110000486322","Par Hawaii Refining - Refinery","91-325 Komohana Street","Kapolei",null,"HI","96707","None","324110","Petroleum Refineries","10200506","External Combustion Industrial: Boilers Distillate Oil Boiler > 100 Million BTU/hr",0,0,0,0,0,0,0]
["1818511","110000486322","Par Hawaii Refining - Refinery","91-325 Komohana Street","Kapolei",null,"HI","96707","None","324110","Petroleum Refineries","10200601","External Combustion Industrial: Boilers Natural Gas > 100 Million BTU/hr",6.81,0.26,3.16,0.616,0.0806,0.446,0.2596225]
["1818511","110000486322","Par Hawaii Refining - Refinery","91-325 Komohana Street","Kapolei",null,"HI","96707","None","324110","Petroleum Refineries","20100101","Internal Combustion Engines Electric Generation Distillate Oil (Diesel) Turbine",1.12487,0.179978,5.36,1.13611,0.103,0.0629924,0.03519925481]
["1818511","110000486322","Par Hawaii Refining - Refinery","91-325 Komohana Street","Kapolei",null,"HI","96707","None","324110","Petroleum Refineries","20100707","Internal Combustion Engines Electric Generation Process Gas Reciprocating: Exhaust",0,0,0,0,0,0,0]
["1818511","110000486322","Par Hawaii Refining - Refinery","91-325 Komohana Street","Kapolei",null,"HI","96707","None","324110","Petroleum Refineries","20100901","Internal Combustion Engines Electric Generation Kerosene/Naphtha (Jet Fuel) Turbine",65.6,5.97,149,9.78,2.85,3.54,2.4254280000000006]
["1818511","110000486322","Par Hawaii Refining - Refinery","91-325 Komohana Street","Kapolei",null,"HI","96707","None","324110","Petroleum Refineries","30600103","Industrial Processes Petroleum Industry Process Heaters Oil",18.746348,2.9994163,85.80208999999999,18.934169,161.44599,1.0497971000000001,0.5865638221300002]
["1818511","110000486322","Par Hawaii Refining - Refinery","91-325 Komohana Street","Kapolei",null,"HI","96707","None","324110","Petroleum Refineries","30600816","Industrial Processes Petroleum Industry Fugitive Emissions Flanges: All Streams",{"$nulls":5},72.6,9.144620889999999]
["1818511","110000486322","Par Hawaii Refining - Refinery","91-325 Komohana Street","Kapolei",null,"HI","96707","None","324110","Petroleum Refineries","30600106","Industrial Processes Petroleum Industry Process Heaters Process Gas",117.24799999999999,4.464799999999999,239.16500000000002,10.610999999999999,1.38694,7.675000000000001,4.468967199999997]
["1818511","110000486322","Par Hawaii Refining - Refinery","91-325 Komohana Street","Kapolei",null,"HI","96707","None","324110","Petroleum Refineries","30600817","Industrial Processes Petroleum Industry Fugitive Emissions Pump Seals: Light Liquid/Gas Streams",{"$nulls":5},2.08,0.36254984000000007]
["1818511","110000486322","Par Hawaii Refining - Refinery","91-325 Komohana Street","Kapolei",null,"HI","96707","None","324110","Petroleum Refineries","30600818","Industrial Processes Petroleum Industry Fugitive Emissions Pump Seals: Heavy Liquid Streams",{"$nulls":5},25.1,2.96128019]
["1818511","110000486322","Par Hawaii Refining - Refinery","91-325 Komohana Street","Kapolei",null,"HI","96707","None","324110","Petroleum Refineries","30600819","Industrial Processes Petroleum Industry Fugitive Emissions Compressor Seals: Gas Streams",{"$nulls":5},7.05,1.4795799400000003]
["1818511","110000486322","Par Hawaii Refining - Refinery","91-325 Komohana Street","Kapolei",null,"HI","96707","None","324110","Petroleum Refineries","30600821","Industrial Processes Petroleum Industry Fugitive Emissions Drains: All Streams",{"$nulls":5},106.57000000000001,22.886266999999997]
["1818511","110000486322","Par Hawaii Refining - Refinery","91-325 Komohana Street","Kapolei",null,"HI","96707","None","324110","Petroleum Refineries","30600903","Industrial Processes Petroleum Industry Flares Natural Gas",0,0,0,0,0,0,0]
["1818511","110000486322","Par Hawaii Refining - Refinery","91-325 Komohana Street","Kapolei",null,"HI","96707","None","324110","Petroleum Refineries","30600904","Industrial Processes Petroleum Industry Flares Process Gas",18.009999999999998,0.1371,8.31,0.627,6.2732,6.8328999999999995,3.2176663999999997]
["1818511","110000486322","Par Hawaii Refining - Refinery","91-325 Komohana Street","Kapolei",null,"HI","96707","None","324110","Petroleum Refineries","30601607","Industrial Processes Petroleum Industry Catalytic Reforming Unit Semi-Regenerative",{"$nulls":5},0.0478,0.8695612]
["1818511","110000486322","Par Hawaii Refining - Refinery","91-325 Komohana Street","Kapolei",null,"HI","96707","None","324110","Petroleum Refineries","30603301","Industrial Processes Petroleum Industry Sulfur Recovery Unit All Not Elsewhere Classified",{"$nulls":5},0.18130000000000002,0.7263000000000001]
["1818511","110000486322","Par Hawaii Refining - Refinery","91-325 Komohana Street","Kapolei",null,"HI","96707","None","324110","Petroleum Refineries","40301182","Chemical Evaporation Petroleum Product Storage at Refineries Floating Roof Tanks (Varying Sizes) Gasoline RVP 7: Working Loss",{"$nulls":5},0.164,0.00781612]
["1818511","110000486322","Par Hawaii Refining - Refinery","91-325 Komohana Street","Kapolei",null,"HI","96707","None","324110","Petroleum Refineries","30609904","Industrial Processes Petroleum Industry Incinerators Process Gas",2.286,0.08687,4.342,0.20640000000000003,13.79693,0.1494,0.08682820000000001]
["1818511","110000486322","Par Hawaii Refining - Refinery","91-325 Komohana Street","Kapolei",null,"HI","96707","None","324110","Petroleum Refineries","30600104","Industrial Processes Petroleum Industry Process Heaters Gas",16.590000000000003,0.632,37.3,1.506,0.19640000000000002,1.086,0.6326854000000001]
["1819511","110000486340","Ball Metal Beverage Container Corporation","91-320 Komohana Street","Kapolei",null,"HI","96707","Metals","332431","Metal Can Manufacturing","40201728","Chemical Evaporation Surface Coating Operations Metal Can Coating Over Varnish",{"$nulls":5},0.5700000000000001,4.8000000000000004E-3]
["1819511","110000486340","Ball Metal Beverage Container Corporation","91-320 Komohana Street","Kapolei",null,"HI","96707","Metals","332431","Metal Can Manufacturing","40200842","Chemical Evaporation Surface Coating Operations Coating Oven - General Two Piece Can Over Varnish Oven",0.28854420000000003,1.6823339999999997E-3,0.343269,0.025991479999999997,2.059998E-3,10.48883355,1.134203102214]
["1819511","110000486340","Ball Metal Beverage Container Corporation","91-320 Komohana Street","Kapolei",null,"HI","96707","Metals","332431","Metal Can Manufacturing","40200843","Chemical Evaporation Surface Coating Operations Coating Oven - General Two Piece Can Interior Body Coat Oven",0.118349,0.000690024,0.1407947,0.01070241,8.4492700000000009E-4,6.577724750000001,0.500001179852]
["1819511","110000486340","Ball Metal Beverage Container Corporation","91-320 Komohana Street","Kapolei",null,"HI","96707","Metals","332431","Metal Can Manufacturing","40201702","Chemical Evaporation Surface Coating Operations Metal Can Coating Cleaning/Pretreatment",0.155336,0.000905672,0.184796,0.0139649,1.10899E-3,0.0101389,1.913e-06]
["1819511","110000486340","Ball Metal Beverage Container Corporation","91-320 Komohana Street","Kapolei",null,"HI","96707","Metals","332431","Metal Can Manufacturing","40201727","Chemical Evaporation Surface Coating Operations Metal Can Coating Lithography",{"$nulls":5},1.23,0.0027]
["1819511","110000486340","Ball Metal Beverage Container Corporation","91-320 Komohana Street","Kapolei",null,"HI","96707","Metals","332431","Metal Can Manufacturing","40201722","Chemical Evaporation Surface Coating Operations Metal Can Coating Interior Spray Coating",{"$nulls":5},8.400000000000002,0.5440000000000003]
["1819511","110000486340","Ball Metal Beverage Container Corporation","91-320 Komohana Street","Kapolei",null,"HI","96707","Metals","332431","Metal Can Manufacturing","40201705","Chemical Evaporation Surface Coating Operations Metal Can Coating Equipment Cleanup",{"$nulls":5},2.0999999999999996]
["12682311","110041598571","Par Hawaii Refining -  Barbers Point Marine Loading","Barbers Point Harbor , Malakole St.","Kapolei",null,"HI","96707","None","324110","Petroleum Refineries","40600249","Chemical Evaporation Transportation and Marketing of Petroleum Products Marine Vessels Jet Fuel: Loading Barges",{"$nulls":5},0.090615]
["12682311","110041598571","Par Hawaii Refining -  Barbers Point Marine Loading","Barbers Point Harbor , Malakole St.","Kapolei",null,"HI","96707","None","324110","Petroleum Refineries","40600236","Chemical Evaporation Transportation and Marketing of Petroleum Products Marine Vessels Gasoline: Loading Tankers: Uncleaned Tanks",{"$nulls":5},29.84,2.1519999999999997]
["12682311","110041598571","Par Hawaii Refining -  Barbers Point Marine Loading","Barbers Point Harbor , Malakole St.","Kapolei",null,"HI","96707","None","324110","Petroleum Refineries","40600238","Chemical Evaporation Transportation and Marketing of Petroleum Products Marine Vessels Gasoline: Loading Barges: Uncleaned Tanks",{"$nulls":5},98.7065,4.937]
["12682311","110041598571","Par Hawaii Refining -  Barbers Point Marine Loading","Barbers Point Harbor , Malakole St.","Kapolei",null,"HI","96707","None","324110","Petroleum Refineries","40600251","Chemical Evaporation Transportation and Marketing of Petroleum Products Marine Vessels Distillate Oil: Loading Barges",{"$nulls":5},0.151035]
["12682311","110041598571","Par Hawaii Refining -  Barbers Point Marine Loading","Barbers Point Harbor , Malakole St.","Kapolei",null,"HI","96707","None","324110","Petroleum Refineries","40600246","Chemical Evaporation Transportation and Marketing of Petroleum Products Marine Vessels Distillate Oil: Loading Tankers",{"$nulls":5},0.060465]
["12682311","110041598571","Par Hawaii Refining -  Barbers Point Marine Loading","Barbers Point Harbor , Malakole St.","Kapolei",null,"HI","96707","None","324110","Petroleum Refineries","40600244","Chemical Evaporation Transportation and Marketing of Petroleum Products Marine Vessels Jet Fuel: Loading Tankers",{"$nulls":5},0.277885]
["12682311","110041598571","Par Hawaii Refining -  Barbers Point Marine Loading","Barbers Point Harbor , Malakole St.","Kapolei",null,"HI","96707","None","324110","Petroleum Refineries","40600299","Chemical Evaporation Transportation and Marketing of Petroleum Products Marine Vessels Other Not Elsewhere Classified",{"$nulls":5},0.111,0.016]
["16858111","110059254505","Mauna Loa Macadamia Nut Plant","16-701 Macadamia Road","Keaau",null,"HI","96749","Food & Beverage","311911","Roasted Nuts and Peanut Butter Manufacturing","10201302","External Combustion Industrial: Boilers Liquid Waste Waste Oil",0.299,0,1.136,4.974,0.409,0.06,0.099]
["16858111","110059254505","Mauna Loa Macadamia Nut Plant","16-701 Macadamia Road","Keaau",null,"HI","96749","Food & Beverage","311911","Roasted Nuts and Peanut Butter Manufacturing","10200503","External Combustion Industrial: Boilers Distillate Oil < 10 Million BTU/hr",0.636,0.178,2.546,0.51,0.016,0.032,1.04805E-4]
["16858111","110059254505","Mauna Loa Macadamia Nut Plant","16-701 Macadamia Road","Keaau",null,"HI","96749","Food & Beverage","311911","Roasted Nuts and Peanut Butter Manufacturing","10200901","External Combustion Industrial: Boilers Wood/Bark Waste Bark-fired Boiler",59.902,0,48.92,63.469,2.496,1.697,1.9530011970383996]
["16858111","110059254505","Mauna Loa Macadamia Nut Plant","16-701 Macadamia Road","Keaau",null,"HI","96749","Food & Beverage","311911","Roasted Nuts and Peanut Butter Manufacturing","20100102","Internal Combustion Engines Electric Generation Distillate Oil (Diesel) Reciprocating",2.358,0.246,16.616,3.002,0.014,0.107,0.0011191014]

{"sheet":"NPDES DMR detail","index":6,"n_rows":26,"n_cols":28,"rows_kept":26}
["NPDES Permit Number","FRS ID","Facility Name","Street Address","City","County","State","Zip Code","NEA Sectors (NEA designation is from the Target Facilities List)","Primary SIC Code (when available)","Primary SIC Description","Primary NAICS Code (when available)","Primary NAICS Description","Total Facility Load (kg, 2020)","Max Allowable Load (kg/yr)","Total Facility Flow (Mgal, 2020)","Actual Average Facility Flow (MGD)","Permit Type","Has Permit Limits","Permit Effective Date","Permit Expiration Date","Major/Non-Major Status","Watershed Name","Water Body Name","Reach Code","Listed for Impairment","Has Loadings Data","Contains Potential Outliers?"]
["HI0000019","110000486439","HAWAIIAN ELECTRIC CO INC KAHE GENERATING STATION","92-200 FARRINGTON HIGHWAY","KAPOLEI","HONOLULU","HI","96707","None","4911","Electric Services",null,"",35977.5038953779,47629.9838329365,247198.245,null,"NPD","Yes","2019-12-01","2024-11-30","Major","Waimanalo Gulch","PACIFIC OCEAN","20060000001846",null,"Yes"]
["HI0000094","110000486395","MAUI ELECTRIC CO LTD KAHULUI GENERATING STATION","200 HOBRON AVENUE","KAHULUI","MAUI","HI","96732","None","4911","Electric Services",null,"",2855075.37144434,8349026.82177708,17955.2,null,"NPD","Yes","2020-11-01","2025-10-31","Major","Iao Stream","PACIFIC OCEAN","20020000000054","Y","Yes"]
["HI0000329","110000486304","CHEVRON PRODUCTS CO - HAWAII REFINERY","91-480 MALAKOLE STREET","KAPOLEI","HONOLULU COUNTY","HI","96707","None","2911","Petroleum Refining",null,"",12138.6038335809,18811.4308390022,286.532,null,"NPD","Yes","2020-01-01","2024-12-31","Major","Waimanalo Gulch","PACIFIC OCEAN","20060000001776",null,"Yes"]
["HI0000353","110018854765","CITIZENS UTILITIES CO","4463 PAHEE STREET","LIHUE","KAUAI","HI","96766-2000","None","4911","Electric Services",null,"",582.489779762131,1836.55059170068,1065.935,"16.2","NPD","Yes","2020-09-01","2025-08-31","Major","Papakolea Stream-Nawiliwili Stream","HANAPEPE BAY, PORT ALLEN BAY","20070000000079","Y","Yes"]
["HI0000604","110000486420","HAWAII ELECTRIC CO WAIAU POWER PLANT","475 KAMEHAMEHA HIGHWAY","PEARL CITY","HONOLULU COUNTY","HI","96782","None","4911","Electric Services",null,"",115515.192799254,295406.575963718,79896,null,"NPD","Yes","2019-09-01","2024-08-31","Major","Kaloi Gulch","EAST LOCH, PEARL HARBOR","20060000003256","Y","Yes"]
["HI0020303","110000520400","EAST HONOLULU WWTP","8480 KALANIANAOLE HIGHWAY","HONOLULU","HONOLULU COUNTY","HI","96825","None","4952","Sewerage Systems",null,"",55271.314951496,360328.662131519,1384.02318,"3.97","NPD","Yes","2020-08-01","2025-07-31","Major","Kuapa Pond","PACIFIC OCEAN","20060000000130","Y","Yes"]
["HI0020346","110013774629","YACHT HARBOR TOWERS AOUO","1600 ALA MOANA BOULEVARD","HONOLULU","HONOLULU","HI","96815-1458","None","6513","Apartment Building Operators",null,"",523.487494843669,1039.7398940017,897.82,"1","NPD","Yes","2019-10-01","2024-09-30","Non-Major","Ala Wai Canal","ALA WAI CANAL","20060000003409","Y","Yes"]
["HI0020630","110010037664","WAIKIKI AQUARIUM","2777 KALAKAUA AVENUE","HONOLULU","HONOLULU","HI","96815","None","8422","Botanical And Zoological Gardens",null,"",789.82120882755,38545.067755102,98.244,"0.0863","NPD","Yes","2014-01-20","2018-12-19","Non-Major","Ala Wai Canal","PACIFIC OCEAN","20060000000145",null,"Yes"]
["HI0021296","110000867054","KAILUA REGIONAL WASTEWATER TREATMENT PLANT","95 KANEOHE BAY DRIVE","KAILUA","HONOLULU","HI","96734-1705","None","4952","Sewerage Systems",null,"",536103.745197609,1263348.75963718,3993.618,"17.16","NPD","Yes","2020-05-01","2025-04-30","Major","Heeia Stream-Kaneohe Stream","PACIFIC OCEAN","20060000001124",null,"Yes"]
["HI0021504","110010037469","MAUI OCEAN CENTER","192 MAALAEA ROAD","WAILUKU","MAUI","HI","96793","None","8422","Botanical And Zoological Gardens",null,"",10423.7537455806,58399.9999999999,399.71,"1.2","NPD","Yes","2020-11-01","2025-10-31","Non-Major","Ahihi Bay","MAALAEA HARBOR","20020000000011","Y","Yes"]
["HI0021654","110006777247","SUNRISE CAPITAL, INC. (FORMERLY CEATECH USA, INC)","7550 KAUMUALII HIGHWAY","KEKAHA","KAUAI","HI","96752","None","913","Shellfish",null,"",52.4722094262,334715.4872207,1155.4,null,"NPD","No","2016-05-01","2021-04-03","Non-Major","Waieli Draw","PACIFIC OCEAN","20070000000003",null,"Yes"]
["HI0021768","110017886867","TOPA FINANCIAL CENTER","745 FORT STREET","HONOLULU","HONOLULU","HI","96813","None","7389","Business Services",null,"",43055.11508105,42213.30905235,678.61,"1.73","NPD","Yes","2015-04-24","2020-04-23","Non-Major","Waolani Stream",null,"20060000000149",null,"Yes"]
["HI0021824","110020140051","GROVE FARM WATER TREATMENT FACILITY (1)","OFF MAALO ROAD","LIHUE","KAUAI","HI","96766","Food & Beverage","4941","Water Supply","312112","Bottled Water Manufacturing",307.046873898249,3036.47874064999,50.7449999999999,null,"NPD","Yes","2011-06-23","2016-04-30","Non-Major","Hanamaulu Stream",null,"20070000003701",null,"Yes"]
["HI0021825","110017880015","KEAHOLE POINT FISH LLC","74-429 KEALAKEHE PARKWAY","KAILUA KONA","HAWAII","HI","96740-2707","None","273","Animal Aquaculture",null,"",0,{"$nulls":3},"NPD","Yes","2021-08-01","2026-07-31","Non-Major",null,"PACIFIC OCEAN","20010000000038",null,"Yes"]
["HI0021846","110055115361","TOELL U.S. A. - MOANALUA WATER FACILITY","300 WAI NANI WAY","HONOLULU","HONOLULU","HI","96815","None",null,"",null,"",13.3982886900178,86.3184253739999,1.48919999999999,"0.0086","NPD","Yes","2013-08-19","2018-08-18","Non-Major","Ala Wai Canal","WAIMALU STREAM","20060000000999","Y","Yes"]
["HI0021885","110066845454","IAO SURFACE WATER TREATMENT PLANT","19 WEST ALU RD.","WAILUKU","MAUI COUNTY","HI","96793","None","4941","Water Supply",null,"",22814.7737878729,140937.825898349,2504.48999999999,null,"NPD","Yes","2016-12-01","2021-11-30","Non-Major","Iao Stream","WAIHEE DITCH","20020000000194","Y","Yes"]
["HI0021890","110006777210","KAHALA HOTEL & RESORT","5000 KAHALA AVENUE","HONOLULU","HONOLULU","HI","96816","None",null,"",null,"",6657.29270577551,103756.80314955,913.754321,null,"NPD","Yes","2016-05-01","2021-04-06","Non-Major","Waialae Nui Gulch","MAUNALUA BAY","20060000000144",null,"Yes"]
["HI0021893","110005724145","HAWAIIAN DREDGING AND CONSTRUCTION CO","91-967 MALAKOLE ROAD","KAPOLEI","HONOLULU","HI","96707","None","3731","Ship Building And Repairing","336611","Ship Building and Repairing",2074.466197476,738.7770896424,11.664,null,"NPD","Yes","2022-04-01","2027-03-31","Non-Major","Makua Stream","BARBERS POINT HARBOR","20060000000195",null,"Yes"]
["HI0021900","110045412576","NOAA DANIEL K INOUYE REGIONAL CENTER (IRC)","1845 WASP BOULEVARD, BUILDING 176, HONOLULU, HI","JBPHH","HONOLULU","HI","96860","None",null,"",null,"",1666.190308,22040.29168362,290.964,"0.88","NPD","Yes","2017-09-01","2022-08-31","Non-Major","Halawa Stream-Waimalu Stream","PEARL HARBOR","20060000002435",null,"Yes"]
["HI0110078","110041973460","US MARINE CORPS BASE HAWAII","BUILDING 0892, MARINE CORPS BASE HAWAII KANEOHE BA","M C B H KANEOHE BAY","HONOLULU","HI","968633062","None","4952","Sewerage Systems",null,"",44587.3862992657,165532.879818594,699.252,"1.12","NPD","Yes","2020-02-01","2024-01-30","Major","Heeia Stream-Kaneohe Stream","PACIFIC OCEAN","20060000000122",null,"Yes"]
["HI0110086","110022302417","NAVY PUBLIC WORKS CENTER","PACIFIC NAVAL FACILITIES ENGINEERING COMMAND ","PEARL HARBOR","HONOLULU","HI","96860-5101","None","4952","Sewerage Systems",null,"",83472.3560545241,1389573.72919519,1846.50182499999,"4.9","NPD","Yes","2020-06-01","2025-05-31","Major","Kaloi Gulch","PACIFIC OCEAN","20060000002470","Y","Yes"]
["HI0110230","110046184516","PEARL HARBOR NAVAL SHIPYARD & INTERMEDIATE MAINTENANCE FACILITY","667 SAFEGUARD STREET","HONOLULU","HONOLULU","HI","96818","None","3731","Ship Building And Repairing",null,"",4515471.15293744,119343.322187695,5291.6966,null,"NPD","Yes","2014-01-11","2018-12-10","Non-Major","Halawa Stream-Waimalu Stream","PEARL HARBOR","20060000000166","Y","Yes"]
["HI1120801","110046184516","PEARL HARBOR NAVAL SHIPYARD & INTERMEDIATE MAINTENANCE FACILITY","667 SAFEGUARD STREET","HONOLULU","HONOLULU","HI","96818","None","3731","Ship Building And Repairing",null,"",2812.26904992,4768.00992,83029.4125714285,null,"NPD","Yes","2020-06-01","2025-05-31","Non-Major","Halawa Stream-Waimalu Stream","HALAWA STREAM - WAIMALU STREAM","20060000000162","Y","Yes"]
["HIF009689","110054104474","FARRINGTON HIGHWAY, REPLACEMENT OF MAIPALAOA BRIDGE","UNKNOWN","UNKNOWN","HONOLULU","HI","0","None",null,"",null,"",0,13716.8702782402,0,null,"GPC","Yes","2013-12-09","2016-12-05","Non-Major","Mailiili Stream","MAILI STREAM","20060000000205","Y","Yes"]
["MW0020338","110070819241","WAKE ISLAND WATER PLANT","100 WATER PLANT AVENUE","WAKE ISLAND",null,"HI","96898-0003","None","4941","Water Supply",null,"",1104484.81439299,218.9567996,31.262,"0.205","NPD","Yes","2021-08-01","2026-07-31","Non-Major",null,"PACIFIC OCEAN",null,null,"Yes","Yes"]